Document Date,Purchase Order No,Line Item No,Supplier ID,Supplier Name,Pro Class,Pro Class Description,Description of Goods (Purpose of expenditure look up),Service/Department   (SAP Hierarchy Position),Expense Area (cost centre desc),Net Order Value Over 5000.00 (line item value shown here),GL Code,Cost Centre/WBS
20/04/2023,ZAV722781,1,4512,Redstor Limited,270000,Information Communication Technology  ,Information and Communications Technology,Corporate and Support Services,IT AVA Non - SLA,"9,600.00",402010,13001
28/04/2023,ZAV723318,1,14149,Smoothwall Ltd,270000,Information Communication Technology  ,Information and Communications Technology,Corporate and Support Services,IT AVA Service,"52,574.56",402001,11417
05/05/2023,ZAV723589,1,1162,RM Education plc,210000,Furniture & Soft Furnishings  ,Furniture and Equipment,Corporate and Support Services,IT AVA Service,"14,772.00",400105,11417
12/06/2023,ZAV725294,1,12351,Getech,270000,Information Communication Technology  ,Information and Communications Technology,Corporate and Support Services,IT AVA Non - SLA,"5,040.00",402001,13001
12/06/2023,ZAV725294,2,12351,Getech,270000,Information Communication Technology  ,Information and Communications Technology,Corporate and Support Services,IT AVA Non - SLA,450,402001,13001
12/06/2023,ZAV725294,3,12351,Getech,270000,Information Communication Technology  ,Information and Communications Technology,Corporate and Support Services,IT AVA Non - SLA,810,402001,13001
12/06/2023,ZAV725294,4,12351,Getech,270000,Information Communication Technology  ,Information and Communications Technology,Corporate and Support Services,IT AVA Non - SLA,150,402001,13001
18/04/2023,ZES722577,1,35,CBC Computer Systems Ltd,270000,Information Communication Technology  ,Information and Communications Technology,Corporate and Support Services,IT Infrastructure,"10,665.00",402001,11324
24/04/2023,ZES722946,1,35,CBC Computer Systems Ltd,270000,Information Communication Technology  ,Information and Communications Technology,Corporate and Support Services,IT Infrastructure,"11,850.00",402001,11324
10/05/2023,ZES723721,1,35,CBC Computer Systems Ltd,270000,Information Communication Technology  ,Information and Communications Technology,Corporate and Support Services,IT Infrastructure,"16,950.00",402001,11324
10/05/2023,ZES723721,2,35,CBC Computer Systems Ltd,270000,Information Communication Technology  ,Information and Communications Technology,Corporate and Support Services,IT Infrastructure,120,402001,11324
10/05/2023,ZES723721,3,35,CBC Computer Systems Ltd,270000,Information Communication Technology  ,Information and Communications Technology,Corporate and Support Services,IT Infrastructure,"1,597.50",402001,11324
07/06/2023,ZES725137,1,12251,Aristi Limited,270000,Information Communication Technology  ,Information and Communications Technology,Corporate and Support Services,IT Infrastructure,"6,971.25",402002,11324
14/06/2023,ZES725468,1,35,CBC Computer Systems Ltd,270000,Information Communication Technology  ,Information and Communications Technology,Corporate and Support Services,IT Infrastructure,"19,775.00",402001,11324
14/06/2023,ZES725468,2,35,CBC Computer Systems Ltd,270000,Information Communication Technology  ,Information and Communications Technology,Corporate and Support Services,IT Infrastructure,"1,863.75",402001,11324
14/06/2023,ZES725468,3,35,CBC Computer Systems Ltd,270000,Information Communication Technology  ,Information and Communications Technology,Corporate and Support Services,IT Infrastructure,"1,960.00",402001,11324
14/06/2023,ZES725468,4,35,CBC Computer Systems Ltd,270000,Information Communication Technology  ,Information and Communications Technology,Corporate and Support Services,IT Infrastructure,490,402001,11324
14/06/2023,ZES725468,5,35,CBC Computer Systems Ltd,270000,Information Communication Technology  ,Information and Communications Technology,Corporate and Support Services,IT Infrastructure,140,402001,11324
14/04/2023,ZFC722430,1,10897,Three Sixty SHG Ltd,390000,"Works - Construction, Repair & Maintenance  ",Repairs and Maintenance,Services to Place,SPB Operational Est.,"5,302.46",200102,11662
03/05/2023,ZFC723476,1,588,H Jenkinson & Co Ltd,210000,Furniture & Soft Furnishings  ,Furniture and Equipment,#N/A,#N/A,"15,951.60",400100,C.00405
15/05/2023,ZFC724025,1,10528,BARLOWS UK LTD,390000,"Works - Construction, Repair & Maintenance  ",Repairs and Maintenance,#N/A,#N/A,"11,988.50",200106,C.00405
23/05/2023,ZFC724484,1,6040,Cheshire Scaffolds Ltd,390000,"Works - Construction, Repair & Maintenance  ",Repairs and Maintenance,Services to Place,SPB Operational Est.,"9,500.00",200123,11662
07/06/2023,ZFC725112,1,1799,Stockport Homes,370000,Utilities   ,Utilities,Services to Place,SPB Operational Est.,"30,000.00",200520,11662
08/06/2023,ZFC725223,1,3529,Totally Local Company Ltd,240000,Horticultural  ,Grounds Maintenance,Services to Place,SPB Operational Est.,"13,071.96",202030,11662
12/06/2023,ZFC725304,1,3529,Totally Local Company Ltd,240000,Horticultural  ,Grounds Maintenance,Services to Place,SPB - Investment Est,"55,751.76",202030,10062
12/06/2023,ZFC725305,1,4482,Waste Solutions SK Ltd,182000,Environmental Services Waste Management ,Waste Management,Services to Place,SPB Operational Est.,"52,986.19",201804,11662
13/06/2023,ZFC725338,1,3529,Totally Local Company Ltd,130000,Cleaning & Janitorial  ,Cleaning,Services to Place,SPB Operational Est.,"524,229.09",201602,11662
29/06/2023,ZHS726282,1,15518,Shape Consulting Engineers Ltd,390000,"Works - Construction, Repair & Maintenance  ",Capital Expenditure - Works,#N/A,#N/A,"6,325.00",200311,C.10958.002
04/05/2023,ZMH723530,1,3529,Totally Local Company Ltd,999999,UNCLASSIFIED  ,MISCLASSIFIED? CHECK BEFORE PUBLICATION,Services to People,Moat House PRU,"9,120.72",100100,10313
20/04/2023,ZPC722776,1,4369,Pennine Care NHS Trust,310000,Healthcare  ,Third party payments - Public Sector,Services to People,Pendlebury Jigsaw,"3,750.37",500402,12709
20/04/2023,ZPC722776,2,4369,Pennine Care NHS Trust,310000,Healthcare  ,Third party payments - Public Sector,Services to People,Pendlebury Jigsaw,"3,788.56",500402,12709
19/04/2023,ZSB722680,1,5981,EUROLYNX (TAXIS) LTD,381600,Vehicle Management Hire/Leasing ,Leasing /Transport Hire,Services to People,Highfields PRU,"14,544.75",300302,10329
24/04/2023,ZSB722915,1,15074,Bespoke Shelters,181800,Environmental Services Technical Equipment ,Furniture and Equipment,Services to People,Highfields PRU,"21,410.00",400110,10329
02/05/2023,ZSB723422,1,5981,EUROLYNX (TAXIS) LTD,381600,Vehicle Management Hire/Leasing ,Leasing /Transport Hire,Services to People,Highfields PRU,"6,847.50",300302,10329
12/05/2023,ZSB723964,1,15074,Bespoke Shelters,181800,Environmental Services Technical Equipment ,Furniture and Equipment,Services to People,Highfields PRU,"3,520.00",400110,10329
12/05/2023,ZSB723964,2,15074,Bespoke Shelters,181800,Environmental Services Technical Equipment ,Furniture and Equipment,Services to People,Highfields PRU,"3,075.00",400110,10329
18/05/2023,ZSB724235,1,13905,SSE SWALEC,370000,Utilities   ,Utilities,Services to People,Highfields PRU,"2,192.18",200510,10329
18/05/2023,ZSB724235,2,13905,SSE SWALEC,370000,Utilities   ,Utilities,Services to People,Highfields PRU,"2,169.34",200510,10329
18/05/2023,ZSB724235,3,13905,SSE SWALEC,370000,Utilities   ,Utilities,Services to People,Highfields PRU,"2,011.22",200510,10329
06/06/2023,ZSB725053,1,5981,EUROLYNX (TAXIS) LTD,381600,Vehicle Management Hire/Leasing ,Leasing /Transport Hire,Services to People,Highfields PRU,"11,145.64",300302,10329
15/06/2023,ZSB725509,1,15012,OM Property UK Limited,150000,Consultancy   ,Professional Fees,Services to People,Highfields PRU,"12,024.00",401020,10329
26/06/2023,ZSB726073,1,10897,Three Sixty SHG Ltd,390000,"Works - Construction, Repair & Maintenance  ",Repairs and Maintenance,Services to People,Highfields PRU,"11,137.69",200123,10329
22/05/2023,ZTR724391,1,9494,Patrol - Parking Charges,200000,Financial Services  ,Fees and Charges,Services to Place,On-Street CP Town Ct,"9,000.00",402401,10050
22/05/2023,ZTR724392,1,10107,Chipside Limited,280000,Legal Services  ,Fees and Charges,Services to Place,Car Parks Admin,"8,000.00",401025,10005
17/04/2023,ZVP722526,1,12300,Markhams Limited,390000,Supplies and services,Supplies and services,#N/A,#N/A,"5,912.50",401600,C.50008.250
17/04/2023,ZVP722528,1,9480,Forbes Solicitors,390000,Supplies and services,Supplies and services,#N/A,#N/A,"6,783.00",401600,C.50012.140
23/05/2023,ZVP724505,1,15668,Monitored Guarding Limited,390000,Supplies and services,Supplies and services,#N/A,#N/A,"19,279.81",401600,C.50007.242
22/06/2023,ZVP725908,1,15668,Monitored Guarding Limited,390000,Supplies and services,Supplies and services,#N/A,#N/A,"8,928.56",401600,C.50007.242
29/06/2023,ZVP726281,1,12300,Markhams Limited,390000,Supplies and services,Supplies and services,#N/A,#N/A,"5,912.50",401600,C.50008.250
03/04/2023,ZZC721648,1,12675,Tiptoes Child Therapy Services,999999,Fees and Charges,Fees and Charges,Services to People,RAA - ASF Grant,"10,000.00",401035,12968
03/04/2023,ZZC721655,1,13335,Family Action,150000,Consultancy   ,Professional Fees,Services to People,RAA Adoption Count,"12,500.00",401020,12957
04/04/2023,ZZC721724,1,12298,One Education Ltd,999999,Fees and Charges,Fees and Charges,Services to People,RAA - ASF Grant,"5,000.00",401035,12968
04/04/2023,ZZC721725,1,12298,One Education Ltd,999999,Fees and Charges,Fees and Charges,Services to People,RAA - ASF Grant,"5,000.00",401035,12968
04/04/2023,ZZC721739,1,1427,Stagecoach Services Ltd,261600,Human Resources Travel & Subsistence ,Travelling Expenses,Services to People,SF Senior Management,"15,000.00",300500,11486
04/04/2023,ZZC721741,1,11990,LINKUP TRANSLATION LTD,261100,Human Resources Interpretation & Translation ,Professional Fees,Services to People,Incl - S.I.U - Perip,"1,117.84",401023,10307
04/04/2023,ZZC721741,2,11990,LINKUP TRANSLATION LTD,261100,Human Resources Interpretation & Translation ,Professional Fees,Services to People,Incl - S.I.U - Perip,"1,518.24",401023,10307
04/04/2023,ZZC721741,3,11990,LINKUP TRANSLATION LTD,261100,Human Resources Interpretation & Translation ,Professional Fees,Services to People,Incl - S.I.U - Perip,"2,900.84",401023,10307
04/04/2023,ZZC721765,1,12298,One Education Ltd,999999,Fees and Charges,Fees and Charges,Services to People,RAA - ASF Grant,"5,000.00",401035,12968
05/04/2023,ZZC721879,1,11242,Gateway Psychology Ltd,999999,Fees and Charges,Fees and Charges,Services to People,RAA - ASF Grant,"9,975.00",401035,12968
05/04/2023,ZZC721884,1,13020,Intraquest Limited,999999,Fees and Charges,Fees and Charges,Services to People,RAA - ASF Grant,"14,900.00",401035,12968
06/04/2023,ZZC722024,1,12943,Christine Taylor t/a Child The,999999,Fees and Charges,Fees and Charges,Services to People,RAA - ASF Grant,"5,000.00",401035,12968
06/04/2023,ZZC722036,1,12775,Daydawn Therapeutic Services,999999,Fees and Charges,Fees and Charges,Services to People,RAA - ASF Grant,"5,000.00",401035,12968
06/04/2023,ZZC722041,1,564,Metro Taxis Ltd,361511,Human Resources Travel & Subsistence Taxi Fares,Travelling Expenses,Services to People,GO/HG Client spend,"5,000.00",300502,13147
06/04/2023,ZZC722043,1,564,Metro Taxis Ltd,361511,Human Resources Travel & Subsistence Taxi Fares,Travelling Expenses,Services to People,Edgeley Client Spend,"5,000.00",300502,13146
06/04/2023,ZZC722048,1,4070,Glen Jakes Nursery,320000,Social Community Care Supplies & Services  ,Care Payments,Services to People,H&R Client Spend,"5,000.00",530356,13143
13/04/2023,ZZC722311,1,8766,ADOPTION MATTERS NORTHWEST,999999,Fees and Charges,Fees and Charges,Services to People,RAA - ASF Grant,"7,379.90",401035,12968
13/04/2023,ZZC722364,1,12501,Nugent Care,320000,Social Community Care Supplies & Services  ,Care Payments,Services to People,EP - Residential,"88,450.00",530325,11449
17/04/2023,ZZC722463,1,12675,Tiptoes Child Therapy Services,999999,Fees and Charges,Fees and Charges,Services to People,RAA - ASF Grant,"10,000.00",401035,12968
19/04/2023,ZZC722733,1,1756,CoramBAAF,200000,Financial Services  ,Fees and Charges,Services to People,RAA Adoption Count,"9,423.36",402401,12957
20/04/2023,ZZC722751,1,12675,Tiptoes Child Therapy Services,999999,Fees and Charges,Fees and Charges,Services to People,RAA - ASF Grant,"5,000.00",401035,12968
20/04/2023,ZZC722814,1,12675,Tiptoes Child Therapy Services,999999,Fees and Charges,Fees and Charges,Services to People,RAA - ASF Grant,"5,000.00",401035,12968
20/04/2023,ZZC722815,1,12675,Tiptoes Child Therapy Services,999999,Fees and Charges,Fees and Charges,Services to People,RAA - ASF Grant,"5,000.00",401035,12968
24/04/2023,ZZC722941,1,12675,Tiptoes Child Therapy Services,150000,Consultancy   ,Professional Fees,Services to People,FP - Special Guardia,"17,220.00",401007,13012
24/04/2023,ZZC722942,1,12675,Tiptoes Child Therapy Services,150000,Consultancy   ,Professional Fees,Services to People,FP - Special Guardia,"16,940.00",401007,13012
24/04/2023,ZZC722950,1,12298,One Education Ltd,999999,Fees and Charges,Fees and Charges,Services to People,RAA - ASF Grant,"5,000.00",401035,12968
25/04/2023,ZZC723010,1,12298,One Education Ltd,999999,Fees and Charges,Fees and Charges,Services to People,RAA - ASF Grant,"5,000.00",401035,12968
25/04/2023,ZZC723076,1,15082,Stockport Active CIC,290000,Arts & Leisure Services  ,Publicity and Promotion,Services to People,SC - Care Matters,"8,000.00",401801,11768
26/04/2023,ZZC723113,1,8249,Creative Concern Ltd,190000,Facilities & Management Services  ,Office Expenses,Services to People,RAA Adoption Count,"9,200.00",400700,12957
26/04/2023,ZZC723114,1,8766,ADOPTION MATTERS NORTHWEST,999999,Fees and Charges,Fees and Charges,Services to People,RAA - ASF Grant,"6,870.80",401035,12968
26/04/2023,ZZC723115,1,14901,Focus Mental Health,999999,Fees and Charges,Fees and Charges,Services to People,RAA - ASF Grant,"5,000.00",401035,12968
27/04/2023,ZZC723205,1,14262,Depaul UK,320000,Social Community Care Supplies & Services  ,Care Payments,Services to People,SC - Leaving Care,"10,000.00",530330,11501
27/04/2023,ZZC723261,1,13084,CORAM,320000,Social Community Care Supplies & Services  ,Care Payments,Services to People,RAA Adoption Count,"39,121.50",530306,12957
27/04/2023,ZZC723262,1,12675,Tiptoes Child Therapy Services,999999,Fees and Charges,Fees and Charges,Services to People,RAA - ASF Grant,"10,000.00",401035,12968
27/04/2023,ZZC723277,1,11986,LUCY FAITHFULL FOUNDATION TRAD,150000,Consultancy   ,Professional Fees,Services to People,Edgeley Client Spend,"6,693.00",401020,13146
02/05/2023,ZZC723452,1,12298,One Education Ltd,999999,Fees and Charges,Fees and Charges,Services to People,RAA - ASF Grant,"5,000.00",401035,12968
02/05/2023,ZZC723455,1,13510,Children's Therapy Solutions,999999,Fees and Charges,Fees and Charges,Services to People,RAA - ASF Grant,"9,856.50",401035,12968
02/05/2023,ZZC723456,1,11417,Parents and Children Together,200000,Financial Services  ,Fees and Charges,Services to People,RAA Adoption Count,"6,000.00",402401,12957
04/05/2023,ZZC723542,1,12675,Tiptoes Child Therapy Services,999999,Fees and Charges,Fees and Charges,Services to People,RAA - ASF Grant,"5,000.00",401035,12968
04/05/2023,ZZC723584,1,12675,Tiptoes Child Therapy Services,999999,Fees and Charges,Fees and Charges,Services to People,RAA - ASF Grant,"10,000.00",401035,12968
04/05/2023,ZZC723585,1,13770,Heidi Pannell Therapeutic Serv,999999,Fees and Charges,Fees and Charges,Services to People,RAA - ASF Grant,"10,000.00",401035,12968
05/05/2023,ZZC723644,1,11242,Gateway Psychology Ltd,999999,Fees and Charges,Fees and Charges,Services to People,RAA - ASF Grant,"9,975.00",401035,12968
05/05/2023,ZZC723645,1,12793,Aspire Therapy Services Ltd,999999,Fees and Charges,Fees and Charges,Services to People,RAA - ASF Grant,"6,000.00",401035,12968
16/05/2023,ZZC724093,1,15690,Aukland House Nursery,320000,Social Community Care Supplies & Services  ,Care Payments,Services to People,Edgeley Client Spend,"9,350.00",530356,13146
17/05/2023,ZZC724181,1,15693,Fresh Thinking Therapy,999999,Fees and Charges,Fees and Charges,Services to People,RAA - ASF Grant,"5,000.00",401035,12968
18/05/2023,ZZC724255,1,12675,Tiptoes Child Therapy Services,999999,Fees and Charges,Fees and Charges,Services to People,RAA - ASF Grant,"5,000.00",401035,12968
18/05/2023,ZZC724259,1,14247,Diagrama Children Services,320000,Social Community Care Supplies & Services  ,Care Payments,Services to People,RAA Adoption Count,"35,565.00",530306,12957
19/05/2023,ZZC724317,1,13335,Family Action,150000,Consultancy   ,Professional Fees,Services to People,RAA Adoption Count,"50,000.00",401020,12957
22/05/2023,ZZC724383,1,2816,The Fostering Network,150000,Consultancy   ,Professional Fees,Services to People,FP - Fostering Staff,"7,689.44",401020,11489
23/05/2023,ZZC724462,1,13020,Intraquest Limited,150000,Consultancy   ,Professional Fees,Services to People,GO/HG Client spend,"5,945.00",401020,13147
23/05/2023,ZZC724462,2,13020,Intraquest Limited,150000,Consultancy   ,Professional Fees,Services to People,GO/HG Client spend,"4,062.20",401020,13147
26/05/2023,ZZC724633,1,7572,Wigan Council...,320000,Social Community Care Supplies & Services  ,Care Payments,Services to People,RAA Adoption Count,"27,000.00",530306,12957
26/05/2023,ZZC724634,1,12298,One Education Ltd,999999,Fees and Charges,Fees and Charges,Services to People,RAA - ASF Grant,"5,850.00",401035,12968
26/05/2023,ZZC724666,1,12298,One Education Ltd,999999,Fees and Charges,Fees and Charges,Services to People,RAA - ASF Grant,"5,000.00",401035,12968
31/05/2023,ZZC724804,1,8766,ADOPTION MATTERS NORTHWEST,999999,Fees and Charges,Fees and Charges,Services to People,RAA - ASF Grant,"7,002.50",401035,12968
01/06/2023,ZZC724885,1,12298,One Education Ltd,999999,Fees and Charges,Fees and Charges,Services to People,RAA - ASF Grant,"5,000.00",401035,12968
01/06/2023,ZZC724889,1,12298,One Education Ltd,999999,Fees and Charges,Fees and Charges,Services to People,RAA - ASF Grant,"5,000.00",401035,12968
01/06/2023,ZZC724902,1,12501,Nugent Care,320000,Social Community Care Supplies & Services  ,Care Payments,Services to People,RAA Adoption Count,"35,565.00",530306,12957
05/06/2023,ZZC725002,1,12298,One Education Ltd,150000,Consultancy   ,Professional Fees,Services to People,RAA - Ctr Excellence,"70,150.00",401020,12967
06/06/2023,ZZC725084,1,5555,MANCHESTER DEAF CENTRE LTD,261100,Human Resources Interpretation & Translation ,Professional Fees,Services to People,Incl - S.I.U - Perip,"5,852.45",401023,10307
08/06/2023,ZZC725151,1,1756,CoramBAAF,200000,Financial Services  ,Fees and Charges,Services to People,RAA Adoption Count,"12,440.24",402401,12957
08/06/2023,ZZC725156,1,12675,Tiptoes Child Therapy Services,999999,Fees and Charges,Fees and Charges,Services to People,RAA - ASF Grant,"5,000.00",401035,12968
08/06/2023,ZZC725184,1,12675,Tiptoes Child Therapy Services,999999,Fees and Charges,Fees and Charges,Services to People,RAA - ASF Grant,"5,000.00",401035,12968
13/06/2023,ZZC725340,1,12675,Tiptoes Child Therapy Services,999999,Fees and Charges,Fees and Charges,Services to People,RAA - ASF Grant,"5,000.00",401035,12968
13/06/2023,ZZC725341,1,12675,Tiptoes Child Therapy Services,999999,Fees and Charges,Fees and Charges,Services to People,RAA - ASF Grant,"5,000.00",401035,12968
13/06/2023,ZZC725367,1,12298,One Education Ltd,999999,Fees and Charges,Fees and Charges,Services to People,RAA - ASF Grant,"5,000.00",401035,12968
19/06/2023,ZZC725609,1,14901,Focus Mental Health,999999,Fees and Charges,Fees and Charges,Services to People,RAA - ASF Grant,"5,000.00",401035,12968
22/06/2023,ZZC725939,1,4611,G-Map Services,150000,Consultancy   ,Professional Fees,Services to People,Marple Client spend,"17,290.00",401020,13142
23/06/2023,ZZC725965,1,14902,Confidentials,190000,Facilities & Management Services  ,Office Expenses,Services to People,RAA Adoption Count,"5,000.00",400700,12957
23/06/2023,ZZC725966,1,14901,Focus Mental Health,999999,Fees and Charges,Fees and Charges,Services to People,RAA - ASF Grant,"5,000.00",401035,12968
28/06/2023,ZZC726220,1,4463,Reach Publishing Serv (MEN),190000,Facilities & Management Services  ,Office Expenses,Services to People,RAA Adoption Count,"10,000.00",400700,12957
28/06/2023,ZZC726233,1,12646,Child in Mind Ltd,999999,Fees and Charges,Fees and Charges,Services to People,RAA - ASF Grant,"8,465.00",401035,12968
28/06/2023,ZZC726237,1,15766,Trueman Change Management Ltd,150000,Consultancy   ,Professional Fees,#N/A,#N/A,"5,673.00",401020,13217
03/04/2023,ZZH721630,1,6918,CYBER MEDIA SOLUTIONS,390000,"Works - Construction, Repair & Maintenance  ",Fees and Charges,Services to People,MOS - Mosaic Mngmnt,"16,776.00",401017,11430
03/04/2023,ZZH721650,1,4463,Reach Publishing Serv (MEN),999999,Fees and Charges,Fees and Charges,Services to Place,Planning,"30,000.00",401036,12150
03/04/2023,ZZH721660,1,13732,SKylight Ltd,320000,Social Community Care Supplies & Services  ,Third party payments - Private/Voluntary Sector,Services to People,Your Support,"1,067,000.00",500530,13174
03/04/2023,ZZH721661,1,10338,STOCKPORT CAR SCHEMES,150000,Consultancy   ,Professional Fees,Services to People,Transport Support,"154,000.00",401020,13177
03/04/2023,ZZH721662,1,10337,SIGNPOST STOCKPORT for CARERS,150000,Consultancy   ,Professional Fees,Services to People,Carers Support Serv,"219,990.00",401020,13178
03/04/2023,ZZH721663,1,1382,Pure Innovations Ltd,150000,Consultancy   ,Professional Fees,Services to People,Community Support,"426,000.00",401020,13175
03/04/2023,ZZH721664,1,1382,Pure Innovations Ltd,150000,Consultancy   ,Professional Fees,Services to People,Community Support,"426,000.00",401020,13175
03/04/2023,ZZH721665,1,11615,Healthwatch Stockport,999999,Social Community Care Supplies & Services  ,Service Contract Payments,Services to People,Healthwatch,"165,000.00",561704,13173
03/04/2023,ZZH721672,1,3303,Family Rights Group,261100,Human Resources Interpretation & Translation ,Professional Fees,Services to People,SG - Child Prot-Safe,"5,220.00",401023,11425
03/04/2023,ZZH721673,1,15223,Review Consulting Ltd,150000,Consultancy   ,Professional Fees,Services to People,SG - Child Prot-Lscb,"8,630.00",401020,11424
03/04/2023,ZZH721679,1,6857,SITEIMPROVE LTD,270000,Information Communication Technology  ,Information and Communications Technology,Corporate and Support Services,IT Systems,"8,653.45",402001,12503
03/04/2023,ZZH721681,1,364,Sutcliffe Play Ltd,240000,Horticultural  ,Grounds Maintenance,#N/A,#N/A,"6,044.00",202032,C.10775
03/04/2023,ZZH721685,1,2671,Oxford University Press.,171113,Education Library Books ,Library Equipment,Corporate and Support Services,Library Dev & Res,"7,226.40",400207,11328
04/04/2023,ZZH721752,1,6116,Atkins Limited,150000,Consultancy   ,Professional Fees,Services to Place,Network Management,"47,361.60",401020,13179
04/04/2023,ZZH721753,1,6967,Wilde Consultants Ltd,150000,Consultancy   ,Professional Fees,Services to Place,Network Management,"44,460.00",401020,13179
04/04/2023,ZZH721754,1,6967,Wilde Consultants Ltd,150000,Consultancy   ,Professional Fees,Services to Place,Network Assets Staff,"44,376.80",401020,11959
04/04/2023,ZZH721756,1,3292,Reach Publishing Services Ltd,190000,Facilities & Management Services  ,Publicity and Promotion,Services to Place,Highways-Network Man,"30,000.00",401800,11968
04/04/2023,ZZH721757,1,6116,Atkins Limited,150000,Consultancy   ,Professional Fees,Services to Place,Network Management,"45,697.60",401020,13179
04/04/2023,ZZH721762,1,8806,Manchester City Council Int,999999,Third party payments - Public Sector,Third party payments - Public Sector,Services to People,SC - NW Strategic Sa,"39,000.00",500303,11491
04/04/2023,ZZH721793,1,13692,Family Care Solutions,320000,Social Community Care Supplies & Services  ,Care Payments,Services to People,DP - Respite,"25,000.00",530335,11513
04/04/2023,ZZH721795,1,15102,Westwood Homecare Ltd (NW),320000,Social Community Care Supplies & Services  ,Care Payments,Services to People,DP - Respite,"7,937.28",530335,11513
04/04/2023,ZZH721796,1,15102,Westwood Homecare Ltd (NW),320000,Social Community Care Supplies & Services  ,Care Payments,Services to People,DP - Respite,"7,937.28",530335,11513
04/04/2023,ZZH721798,1,15102,Westwood Homecare Ltd (NW),320000,Social Community Care Supplies & Services  ,Care Payments,Services to People,DP - Respite,"15,875.00",530335,11513
04/04/2023,ZZH721799,1,15102,Westwood Homecare Ltd (NW),320000,Social Community Care Supplies & Services  ,Care Payments,Services to People,DP - Respite,"12,206.00",530335,11513
04/04/2023,ZZH721801,1,11897,SENSE CAS FINANCE TEAM,320000,Social Community Care Supplies & Services  ,Care Payments,Services to People,DP - Respite,"10,545.60",530335,11513
04/04/2023,ZZH721805,1,11897,SENSE CAS FINANCE TEAM,320000,Social Community Care Supplies & Services  ,Care Payments,Services to People,DP - Respite,"5,754.00",530335,11513
04/04/2023,ZZH721806,1,15102,Westwood Homecare Ltd (NW),320000,Social Community Care Supplies & Services  ,Care Payments,Services to People,DP - Respite,"31,750.00",530335,11513
04/04/2023,ZZH721808,1,11897,SENSE CAS FINANCE TEAM,320000,Social Community Care Supplies & Services  ,Care Payments,Services to People,DP - Respite,"5,333.00",530335,11513
04/04/2023,ZZH721813,1,2816,The Fostering Network,390000,"Works - Construction, Repair & Maintenance  ",Fees and Charges,Services to People,FP - Fostering Staff,"7,000.00",401017,11489
04/04/2023,ZZH721818,1,3529,Totally Local Company Ltd,150000,Consultancy   ,Professional Fees,Services to Place,Climate Change Now,"20,000.00",401007,13112
04/04/2023,ZZH721824,1,6967,Wilde Consultants Ltd,150000,Consultancy   ,Professional Fees,Services to Place,Design Frmwk Staff,"52,235.60",401020,11965
04/04/2023,ZZH721825,1,6967,Wilde Consultants Ltd,150000,Consultancy   ,Professional Fees,Services to Place,Design Frmwk Staff,"52,235.60",401020,11965
05/04/2023,ZZH721842,1,11897,SENSE CAS FINANCE TEAM,320000,Social Community Care Supplies & Services  ,Care Payments,Services to People,DP - Respite,"6,760.00",530358,11513
05/04/2023,ZZH721853,1,658,Disability Stockport,320000,Social Community Care Supplies & Services  ,Third party payments - Private/Voluntary Sector,Corporate and Support Services,Benefit & Debt Advce,"10,000.00",402403,11322
05/04/2023,ZZH721854,1,658,Disability Stockport,320000,Social Community Care Supplies & Services  ,Third party payments - Private/Voluntary Sector,Corporate and Support Services,Benefit & Debt Advce,"15,000.00",402403,11322
05/04/2023,ZZH721868,1,6967,Wilde Consultants Ltd,150000,Consultancy   ,Professional Fees,Services to Place,Design Frmwk Staff,"45,346.80",401020,11965
05/04/2023,ZZH721869,1,14349,madlab,150000,Consultancy   ,Professional Fees,Services to Place,CDF Workspace Proj,"8,370.00",401007,13187
05/04/2023,ZZH721871,1,8106,Tarmac Trading Ltd,390000,"Works - Construction, Repair & Maintenance  ",Capital Expenditure - Works,#N/A,#N/A,"15,400.00",200304,C.01220.203
05/04/2023,ZZH721885,1,3529,Totally Local Company Ltd,182000,Environmental Services Waste Management ,Waste Management,Services to Place,Pymnt to contctr R+R,"9,496,571.00",201804,10856
05/04/2023,ZZH721885,2,3529,Totally Local Company Ltd,181600,Environmental Services Street Cleansing ,Cleaning,Services to Place,Contrct P-St Cleansg,"3,190,043.00",201606,10881
05/04/2023,ZZH721885,3,3529,Totally Local Company Ltd,181600,Environmental Services Street Cleansing ,Cleaning,Services to Place,Drainage Works,"214,430.00",201606,12681
05/04/2023,ZZH721885,4,3529,Totally Local Company Ltd,230000,Highway Equipment & Materials�   ,Highways Maintenance,Services to Place,Gritting,"493,217.00",202056,12033
05/04/2023,ZZH721885,5,3529,Totally Local Company Ltd,240000,Horticultural  ,Grounds Maintenance,Services to Place,SSK Contract SLA,"2,225,519.00",202030,11166
05/04/2023,ZZH721885,6,3529,Totally Local Company Ltd,230000,Highway Equipment & Materials�   ,Highways Maintenance,Services to Place,SLA Safety Detect R,"1,945,113.00",202050,11984
05/04/2023,ZZH721885,7,3529,Totally Local Company Ltd,350000,Street & Traffic Management  ,Fixtures and Fittings,Services to Place,SLA Street Lighting,"978,710.00",201202,12026
05/04/2023,ZZH721885,8,3529,Totally Local Company Ltd,240000,Horticultural  ,Grounds Maintenance,Services to Place,SSK Contract SLA,"173,420.00",202030,11166
05/04/2023,ZZH721885,9,3529,Totally Local Company Ltd,240000,Horticultural  ,Grounds Maintenance,Services to Place,Arboricult Contr SSK,"447,996.00",202030,12821
05/04/2023,ZZH721885,10,3529,Totally Local Company Ltd,390000,"Works - Construction, Repair & Maintenance  ",Capital Expenditure - Works,#N/A,#N/A,"600,000.00",200304,C.00712.203
05/04/2023,ZZH721885,11,3529,Totally Local Company Ltd,390000,"Works - Construction, Repair & Maintenance  ",Capital Expenditure - Works,#N/A,#N/A,"500,000.00",200304,C.00705.203
05/04/2023,ZZH721885,12,3529,Totally Local Company Ltd,202000,Financial Services Rents ,Rents,Services to Place,Operational Support,"47,450.00",200700,10924
05/04/2023,ZZH721888,1,11897,SENSE CAS FINANCE TEAM,320000,Social Community Care Supplies & Services  ,Care Payments,Services to People,DP - Respite,"8,204.00",530358,11513
05/04/2023,ZZH721889,1,15295,Practically Family HQ,320000,Social Community Care Supplies & Services  ,Care Payments,Services to People,DP - Respite,"5,947.20",530358,11513
05/04/2023,ZZH721891,1,11897,SENSE CAS FINANCE TEAM,320000,Social Community Care Supplies & Services  ,Care Payments,Services to People,DP - Respite,"5,127.50",530358,11513
05/04/2023,ZZH721894,1,1722,The Together Trust Centre,320000,Social Community Care Supplies & Services  ,Care Payments,Services to People,DP - Respite,"7,650.00",530358,11513
05/04/2023,ZZH721897,1,11782,Time Specialist Support,320000,Social Community Care Supplies & Services  ,Care Payments,Services to People,DP - Respite,"11,820.00",530358,11513
05/04/2023,ZZH721900,1,1722,The Together Trust Centre,320000,Social Community Care Supplies & Services  ,Care Payments,Services to People,DP - Respite,"7,650.00",530335,11513
05/04/2023,ZZH721901,1,11897,SENSE CAS FINANCE TEAM,320000,Social Community Care Supplies & Services  ,Care Payments,Services to People,DP - Respite,"14,390.64",530358,11513
05/04/2023,ZZH721903,1,12824,Carrington Riding Centre,320000,Social Community Care Supplies & Services  ,Care Payments,Services to People,DP - Respite,"5,720.00",530335,11513
05/04/2023,ZZH721907,1,1722,The Together Trust Centre,320000,Social Community Care Supplies & Services  ,Care Payments,Services to People,DP - Respite,"7,956.00",530358,11513
05/04/2023,ZZH721911,1,9232,Reed Specialist Recruitment Lt,320000,Social Community Care Supplies & Services  ,Care Payments,Services to People,DP - Respite,"22,152.00",530358,11513
05/04/2023,ZZH721917,1,12138,HG CARE SERVICES LTD,320000,Social Community Care Supplies & Services  ,Care Payments,Services to People,DP - Respite,"6,188.00",530358,11513
05/04/2023,ZZH721921,1,6568,CROSSROADS CARING FOR CARERS,320000,Social Community Care Supplies & Services  ,Care Payments,Services to People,DP - Respite,"5,616.00",530358,11513
05/04/2023,ZZH721922,1,6568,CROSSROADS CARING FOR CARERS,320000,Social Community Care Supplies & Services  ,Care Payments,Services to People,DP - Respite,"5,616.00",530358,11513
05/04/2023,ZZH721925,1,1816,Seashell Trust,320000,Social Community Care Supplies & Services  ,Care Payments,Services to People,DP - Respite,"5,516.00",530358,11513
05/04/2023,ZZH721943,1,1722,The Together Trust Centre,320000,Social Community Care Supplies & Services  ,Care Payments,Services to People,DP - Respite,"7,650.00",530358,11513
05/04/2023,ZZH721944,1,14298,Lagan's Foundation,320000,Social Community Care Supplies & Services  ,Care Payments,Services to People,DP - Respite,"56,160.00",530335,11513
05/04/2023,ZZH721945,1,1816,Seashell Trust,320000,Social Community Care Supplies & Services  ,Care Payments,Services to People,DP - Respite,"37,056.60",530335,11513
05/04/2023,ZZH721946,1,15102,Westwood Homecare Ltd (NW),320000,Social Community Care Supplies & Services  ,Care Payments,Services to People,DP - Respite,"14,958.72",530335,11513
05/04/2023,ZZH721947,1,9232,Reed Specialist Recruitment Lt,320000,Social Community Care Supplies & Services  ,Care Payments,Services to People,DP - Respite,"12,000.00",530335,11513
05/04/2023,ZZH721949,1,14298,Lagan's Foundation,320000,Social Community Care Supplies & Services  ,Care Payments,Services to People,DP - Respite,"7,488.00",530335,11513
05/04/2023,ZZH721952,1,11897,SENSE CAS FINANCE TEAM,320000,Social Community Care Supplies & Services  ,Care Payments,Services to People,DP - Respite,"7,937.28",530335,11513
05/04/2023,ZZH721953,1,11897,SENSE CAS FINANCE TEAM,320000,Social Community Care Supplies & Services  ,Care Payments,Services to People,DP - Respite,"7,294.56",530335,11513
05/04/2023,ZZH721954,1,13884,Crossroads Together,320000,Social Community Care Supplies & Services  ,Care Payments,Services to People,DP - Respite,"5,015.00",530335,11513
05/04/2023,ZZH721955,1,1722,The Together Trust Centre,320000,Social Community Care Supplies & Services  ,Care Payments,Services to People,DP - Respite,"7,956.00",530335,11513
05/04/2023,ZZH721958,1,6967,Wilde Consultants Ltd,150000,Consultancy   ,Professional Fees,Services to Place,Design Frmwk Staff,"54,560.00",401020,11965
05/04/2023,ZZH721959,1,6967,Wilde Consultants Ltd,150000,Consultancy   ,Professional Fees,Services to Place,Design Frmwk Staff,"29,574.00",401020,11965
05/04/2023,ZZH721960,1,1799,Stockport Homes,390000,"Works - Construction, Repair & Maintenance  ",Repairs and Maintenance,Services to People,Brinnigton CC,"40,000.00",200123,12295
05/04/2023,ZZH721961,1,6967,Wilde Consultants Ltd,150000,Consultancy   ,Professional Fees,Services to Place,Design Frmwk Staff,"31,434.00",401020,11965
05/04/2023,ZZH721962,1,6967,Wilde Consultants Ltd,150000,Consultancy   ,Professional Fees,Services to Place,Design Frmwk Staff,"55,539.60",401020,11965
05/04/2023,ZZH721964,1,6967,Wilde Consultants Ltd,150000,Consultancy   ,Professional Fees,Services to Place,Design Frmwk Staff,"52,576.00",401020,11965
05/04/2023,ZZH721965,1,6967,Wilde Consultants Ltd,150000,Consultancy   ,Professional Fees,Services to Place,Design Frmwk Staff,"61,776.80",401020,11965
05/04/2023,ZZH721967,1,6967,Wilde Consultants Ltd,150000,Consultancy   ,Professional Fees,Services to Place,Design Frmwk Staff,"52,235.60",401020,11965
05/04/2023,ZZH721969,1,6748,GEORGE COX & SONS LTD,390000,Supplies and services,Supplies and services,#N/A,#N/A,"19,976.73",401600,C.01534.203
05/04/2023,ZZH721971,1,6967,Wilde Consultants Ltd,150000,Consultancy   ,Professional Fees,Services to Place,Design Frmwk Staff,"55,539.60",401020,11965
05/04/2023,ZZH721972,1,6967,Wilde Consultants Ltd,150000,Consultancy   ,Professional Fees,Services to Place,Design Frmwk Staff,"52,235.60",401020,11965
05/04/2023,ZZH721976,1,14806,Anglian Water Business (Nation,370000,Utilities   ,Utilities,Services to People,Brinnigton CC,"25,000.00",201005,12295
05/04/2023,ZZH721977,1,4272,Civica UK Ltd,270000,Information Communication Technology  ,Information and Communications Technology,Corporate and Support Services,Electoral Registn,"11,979.16",402001,11102
05/04/2023,ZZH721984,1,1104,Age UK Stockport,150000,Consultancy   ,Professional Fees,Services to People,PH-Physical Activity,"5,209.46",401020,12834
06/04/2023,ZZH721998,1,5788,DESIGNED ROOF SYSTEMS LTD,390000,"Works - Construction, Repair & Maintenance  ",Repairs and Maintenance,#N/A,#N/A,"400,000.00",200123,C.10427.109
06/04/2023,ZZH721999,1,6967,Wilde Consultants Ltd,150000,Consultancy   ,Professional Fees,Services to Place,Design Frmwk Staff,"45,346.80",401020,11965
06/04/2023,ZZH722000,1,6748,GEORGE COX & SONS LTD,150000,Consultancy   ,Professional Fees,#N/A,#N/A,"8,552.71",401007,C.01511.202
06/04/2023,ZZH722001,1,6748,GEORGE COX & SONS LTD,150000,Consultancy   ,Professional Fees,#N/A,#N/A,"48,808.91",401007,C.01507.202
06/04/2023,ZZH722004,1,6698,Brook Edgeley Specialist te,390000,"Works - Construction, Repair & Maintenance  ",Repairs and Maintenance,#N/A,#N/A,"9,957.00",200123,C.11502.133
06/04/2023,ZZH722012,1,4514,Brook,390000,Supplies and services,Supplies and services,Services to People,PH-Chlamydia Screen,"34,848.00",401600,12747
06/04/2023,ZZH722016,1,3529,Totally Local Company Ltd,999999,Fees and Charges,Fees and Charges,Services to Place,Operational Support,"264,737.38",402404,10924
06/04/2023,ZZH722038,1,9365,DSI Billing Services Ltd,191600,Facilities & Management Services Printing ,Printing and Photocopying,Corporate and Support Services,Bentax,"63,407.80",400800,11139
06/04/2023,ZZH722052,1,10392,Bibliographic Data Services Li,270000,Information Communication Technology  ,Information and Communications Technology,Corporate and Support Services,Library Dev & Res,"13,992.50",402007,11328
06/04/2023,ZZH722055,1,11539,Bolinda UK Limited,171113,Education Library Books ,Library Equipment,Corporate and Support Services,Library Dev & Res,"2,500.00",400202,11328
06/04/2023,ZZH722055,2,11539,Bolinda UK Limited,171113,Education Library Books ,Library Equipment,Corporate and Support Services,Library Dev & Res,"22,143.00",400202,11328
06/04/2023,ZZH722055,3,11539,Bolinda UK Limited,171113,Education Library Books ,Library Equipment,Corporate and Support Services,Library Dev & Res,"7,381.00",400202,11328
06/04/2023,ZZH722057,1,11784,Cengage Learning Services,171113,Education Library Books ,Library Equipment,Corporate and Support Services,Library Dev & Res,"6,945.75",400202,11328
11/04/2023,ZZH722077,1,7670,Wilds Of Oldham,110000,Catering  ,Expenses and Allowances,Corporate and Support Services,Town Hall Events,"10,000.00",402202,11375
11/04/2023,ZZH722078,1,7670,Wilds Of Oldham,110000,Catering  ,Expenses and Allowances,Corporate and Support Services,Bramall Hall Events,"5,000.00",402202,12949
11/04/2023,ZZH722080,1,9365,DSI Billing Services Ltd,191600,Facilities & Management Services Printing ,Printing and Photocopying,Corporate and Support Services,Bentax,"75,000.00",400800,11139
11/04/2023,ZZH722084,1,12577,Guestline Hospitality Software,270000,Information Communication Technology  ,Information and Communications Technology,Corporate and Support Services,Town Hall Events,"6,000.00",402010,11375
11/04/2023,ZZH722089,1,10923,Johnson Stalbridge Linen Servi,111200,Catering Food & Beverages ,Catering Supplies,Corporate and Support Services,Town Hall Events,"5,000.00",400424,11375
11/04/2023,ZZH722094,1,15082,Stockport Active CIC,999999,Social Community Care Supplies & Services  ,Service Contract Payments,Services to People,PH-Lifestyles,"206,619.00",561704,12737
11/04/2023,ZZH722095,1,10867,ABL Health Ltd,310000,Healthcare  ,Third party payments - Public Sector,Services to People,PH-Lifestyles,"332,595.00",500402,12737
11/04/2023,ZZH722102,1,3529,Totally Local Company Ltd,240000,Horticultural  ,Grounds Maintenance,Services to Place,Policy-Rights Of Way,"5,000.00",202030,10088
11/04/2023,ZZH722103,1,3529,Totally Local Company Ltd,240000,Horticultural  ,Grounds Maintenance,Services to Place,Policy-Rights Of Way,"5,000.00",202030,10088
11/04/2023,ZZH722105,1,4463,Reach Publishing Serv (MEN),240000,Horticultural  ,Grounds Maintenance,Services to Place,Policy-Rights Of Way,"6,000.00",202030,10088
11/04/2023,ZZH722107,1,3292,Reach Publishing Services Ltd,190000,Facilities & Management Services  ,Publicity and Promotion,Services to Place,Rechargeable work,"18,400.00",401800,11961
12/04/2023,ZZH722131,1,12180,Acorn Care and Education,261500,Human Resources Training & Conferences ,Fees and Charges,Services to People,SEN Independent Sch,"39,774.39",401024,10372
12/04/2023,ZZH722132,1,12180,Acorn Care and Education,261500,Human Resources Training & Conferences ,Fees and Charges,Services to People,SEN Independent Sch,"37,147.58",401024,10372
12/04/2023,ZZH722133,1,12180,Acorn Care and Education,261500,Human Resources Training & Conferences ,Fees and Charges,Services to People,SEN Independent Sch,"16,572.66",401024,10372
12/04/2023,ZZH722147,1,12180,Acorn Care and Education,261500,Human Resources Training & Conferences ,Fees and Charges,Services to People,SEN Independent Sch,"26,278.06",401024,10372
12/04/2023,ZZH722149,1,12180,Acorn Care and Education,261500,Human Resources Training & Conferences ,Fees and Charges,Services to People,SEN Independent Sch,"39,774.39",401024,10372
12/04/2023,ZZH722151,1,12180,Acorn Care and Education,261500,Human Resources Training & Conferences ,Fees and Charges,Services to People,SEN Independent Sch,"29,276.76",401024,10372
12/04/2023,ZZH722169,1,12180,Acorn Care and Education,261500,Human Resources Training & Conferences ,Fees and Charges,Services to People,SEN Independent Sch,"25,647.14",401024,10372
12/04/2023,ZZH722182,1,12180,Acorn Care and Education,261500,Human Resources Training & Conferences ,Fees and Charges,Services to People,SEN Independent Sch,"34,229.17",401024,10372
12/04/2023,ZZH722184,1,12180,Acorn Care and Education,261500,Human Resources Training & Conferences ,Fees and Charges,Services to People,SEN Independent Sch,"38,707.75",401024,10372
12/04/2023,ZZH722187,1,12180,Acorn Care and Education,261500,Human Resources Training & Conferences ,Fees and Charges,Services to People,SEN Independent Sch,"39,774.39",401024,10372
12/04/2023,ZZH722188,1,14243,Keys PCE Ltd,261500,Human Resources Training & Conferences ,Fees and Charges,Services to People,SEN Independent Sch,"43,407.00",401024,10372
12/04/2023,ZZH722190,1,12180,Acorn Care and Education,261500,Human Resources Training & Conferences ,Fees and Charges,Services to People,SEN Independent Sch,"61,553.14",401024,10372
12/04/2023,ZZH722191,1,12180,Acorn Care and Education,261500,Human Resources Training & Conferences ,Fees and Charges,Services to People,SEN Independent Sch,"82,150.00",401024,10372
12/04/2023,ZZH722192,1,12180,Acorn Care and Education,261500,Human Resources Training & Conferences ,Fees and Charges,Services to People,SEN Independent Sch,"70,264.00",401024,10372
12/04/2023,ZZH722193,1,12180,Acorn Care and Education,261500,Human Resources Training & Conferences ,Fees and Charges,Services to People,SEN Independent Sch,"53,621.86",401024,10372
12/04/2023,ZZH722194,1,12180,Acorn Care and Education,261500,Human Resources Training & Conferences ,Fees and Charges,Services to People,SEN Independent Sch,"70,264.22",401024,10372
12/04/2023,ZZH722195,1,12180,Acorn Care and Education,261500,Human Resources Training & Conferences ,Fees and Charges,Services to People,SEN Independent Sch,"71,324.22",401024,10372
12/04/2023,ZZH722196,1,12180,Acorn Care and Education,261500,Human Resources Training & Conferences ,Fees and Charges,Services to People,SEN Independent Sch,"63,335.00",401024,10372
12/04/2023,ZZH722197,1,12180,Acorn Care and Education,261500,Human Resources Training & Conferences ,Fees and Charges,Services to People,SEN Independent Sch,"63,335.00",401024,10372
12/04/2023,ZZH722198,1,12180,Acorn Care and Education,261500,Human Resources Training & Conferences ,Fees and Charges,Services to People,SEN Independent Sch,"82,150.00",401024,10372
12/04/2023,ZZH722199,1,12180,Acorn Care and Education,261500,Human Resources Training & Conferences ,Fees and Charges,Services to People,SEN Independent Sch,"75,320.42",401024,10372
12/04/2023,ZZH722200,1,12180,Acorn Care and Education,261500,Human Resources Training & Conferences ,Fees and Charges,Services to People,SEN Independent Sch,"70,264.22",401024,10372
12/04/2023,ZZH722201,1,12180,Acorn Care and Education,261500,Human Resources Training & Conferences ,Fees and Charges,Services to People,SEN Independent Sch,"63,335.00",401024,10372
12/04/2023,ZZH722202,1,12180,Acorn Care and Education,261500,Human Resources Training & Conferences ,Fees and Charges,Services to People,SEN Independent Sch,"82,150.00",401024,10372
12/04/2023,ZZH722203,1,12180,Acorn Care and Education,261500,Human Resources Training & Conferences ,Fees and Charges,Services to People,SEN Independent Sch,"63,335.00",401024,10372
12/04/2023,ZZH722204,1,12180,Acorn Care and Education,261500,Human Resources Training & Conferences ,Fees and Charges,Services to People,SEN Independent Sch,"82,150.00",401024,10372
12/04/2023,ZZH722205,1,12180,Acorn Care and Education,261500,Human Resources Training & Conferences ,Fees and Charges,Services to People,SEN Independent Sch,"82,150.00",401024,10372
12/04/2023,ZZH722206,1,12180,Acorn Care and Education,261500,Human Resources Training & Conferences ,Fees and Charges,Services to People,SEN Independent Sch,"82,150.00",401024,10372
12/04/2023,ZZH722207,1,4238,Thomasson Memorial School,170000,Education  ,Third party payments - Public Sector,Services to People,OLA pupils,"37,572.50",500304,10371
12/04/2023,ZZH722208,1,12180,Acorn Care and Education,261500,Human Resources Training & Conferences ,Fees and Charges,Services to People,SEN Independent Sch,"75,320.42",401024,10372
12/04/2023,ZZH722209,1,15517,Fallibroome Academy,170000,Education  ,Third party payments - Public Sector,Services to People,OLA pupils,"18,850.00",500304,10371
12/04/2023,ZZH722212,1,12180,Acorn Care and Education,261500,Human Resources Training & Conferences ,Fees and Charges,Services to People,SEN Independent Sch,"63,335.00",401024,10372
12/04/2023,ZZH722213,1,12180,Acorn Care and Education,261500,Human Resources Training & Conferences ,Fees and Charges,Services to People,SEN Independent Sch,"70,264.22",401024,10372
12/04/2023,ZZH722214,1,12180,Acorn Care and Education,261500,Human Resources Training & Conferences ,Fees and Charges,Services to People,SEN Independent Sch,"70,264.22",401024,10372
12/04/2023,ZZH722215,1,12180,Acorn Care and Education,261500,Human Resources Training & Conferences ,Fees and Charges,Services to People,SEN Independent Sch,"63,067.75",401024,10372
12/04/2023,ZZH722216,1,12180,Acorn Care and Education,261500,Human Resources Training & Conferences ,Fees and Charges,Services to People,SEN Independent Sch,"63,335.00",401024,10372
12/04/2023,ZZH722217,1,12180,Acorn Care and Education,261500,Human Resources Training & Conferences ,Fees and Charges,Services to People,SEN Independent Sch,"63,335.00",401024,10372
12/04/2023,ZZH722225,1,6748,GEORGE COX & SONS LTD,390000,Supplies and services,Supplies and services,#N/A,#N/A,"107,589.94",401600,C.01594.203
12/04/2023,ZZH722226,1,3529,Totally Local Company Ltd,240000,Horticultural  ,Grounds Maintenance,Services to Place,Policy-Rights Of Way,"11,000.00",202030,10088
12/04/2023,ZZH722228,1,3529,Totally Local Company Ltd,240000,Horticultural  ,Grounds Maintenance,Services to Place,Policy-Rights Of Way,"15,000.00",202030,10088
12/04/2023,ZZH722247,1,13223,A Pacini Ltd,261400,Human Resources Temporary & Agency Staff ,Agency Staff,Services to Place,Property Client Acct,"5,022.00",100290,12328
12/04/2023,ZZH722270,1,14243,Keys PCE Ltd,261500,Human Resources Training & Conferences ,Fees and Charges,Services to People,SEN Independent Sch,"45,240.00",401024,10372
12/04/2023,ZZH722271,1,14243,Keys PCE Ltd,261500,Human Resources Training & Conferences ,Fees and Charges,Services to People,SEN Independent Sch,"47,970.00",401024,10372
12/04/2023,ZZH722272,1,14243,Keys PCE Ltd,261500,Human Resources Training & Conferences ,Fees and Charges,Services to People,SEN Independent Sch,"47,970.00",401024,10372
12/04/2023,ZZH722273,1,14243,Keys PCE Ltd,261500,Human Resources Training & Conferences ,Fees and Charges,Services to People,SEN Independent Sch,"43,407.00",401024,10372
12/04/2023,ZZH722274,1,14243,Keys PCE Ltd,261500,Human Resources Training & Conferences ,Fees and Charges,Services to People,SEN Independent Sch,"45,240.00",401024,10372
12/04/2023,ZZH722275,1,14243,Keys PCE Ltd,261500,Human Resources Training & Conferences ,Fees and Charges,Services to People,SEN Independent Sch,"47,970.00",401024,10372
12/04/2023,ZZH722276,1,14243,Keys PCE Ltd,261500,Human Resources Training & Conferences ,Fees and Charges,Services to People,SEN Independent Sch,"45,240.00",401024,10372
12/04/2023,ZZH722277,1,14243,Keys PCE Ltd,261500,Human Resources Training & Conferences ,Fees and Charges,Services to People,SEN Independent Sch,"43,407.00",401024,10372
12/04/2023,ZZH722278,1,14243,Keys PCE Ltd,261500,Human Resources Training & Conferences ,Fees and Charges,Services to People,SEN Independent Sch,"45,240.00",401024,10372
12/04/2023,ZZH722279,1,14243,Keys PCE Ltd,261500,Human Resources Training & Conferences ,Fees and Charges,Services to People,SEN Independent Sch,"47,970.00",401024,10372
12/04/2023,ZZH722280,1,14243,Keys PCE Ltd,261500,Human Resources Training & Conferences ,Fees and Charges,Services to People,SEN Independent Sch,"43,407.00",401024,10372
12/04/2023,ZZH722281,1,14243,Keys PCE Ltd,261500,Human Resources Training & Conferences ,Fees and Charges,Services to People,SEN Independent Sch,"43,407.00",401024,10372
12/04/2023,ZZH722283,1,14243,Keys PCE Ltd,261500,Human Resources Training & Conferences ,Fees and Charges,Services to People,SEN Independent Sch,"43,407.00",401024,10372
12/04/2023,ZZH722294,1,6283,CLEAPSS,200000,Financial Services  ,Fees and Charges,Services to People,SI - Advisers,"5,259.20",402401,10727
12/04/2023,ZZH722305,1,15303,Baber Raza Shafiq,290000,Arts & Leisure Services  ,Publicity and Promotion,Services to People,GMCA CS Grant,"5,000.00",401801,11505
13/04/2023,ZZH722357,1,11162,Kenny Waste Management Ltd,210000,Furniture & Soft Furnishings  ,Furniture and Equipment,Services to Place,Berevement Services,"11,239.20",400115,11285
13/04/2023,ZZH722377,1,2718,Virgin Media Business,150000,Consultancy   ,Professional Fees,Services to Place,CCTV-Control,"6,500.00",401020,12822
13/04/2023,ZZH722382,1,15451,FUTURE EVERYTHING CIC,150000,Consultancy   ,Professional Fees,Services to Place,CDF Workspace Proj,"14,400.00",401007,13187
13/04/2023,ZZH722389,1,1104,Age UK Stockport,150000,Consultancy   ,Professional Fees,Services to People,Home Support,"374,000.00",401020,13176
14/04/2023,ZZH722391,1,35,CBC Computer Systems Ltd,270000,Information Communication Technology  ,Information and Communications Technology,Services to People,INT B Staffing,"2,320.00",402001,12897
14/04/2023,ZZH722391,2,35,CBC Computer Systems Ltd,270000,Information Communication Technology  ,Information and Communications Technology,Services to People,INT B Staffing,95.2,402001,12897
14/04/2023,ZZH722391,3,35,CBC Computer Systems Ltd,270000,Information Communication Technology  ,Information and Communications Technology,Services to People,INT B Staffing,143.2,402001,12897
14/04/2023,ZZH722391,4,35,CBC Computer Systems Ltd,270000,Information Communication Technology  ,Information and Communications Technology,Services to People,INT B Staffing,"3,136.00",402001,12897
14/04/2023,ZZH722397,1,2295,P McGuinness and Co Ltd,390000,"Works - Construction, Repair & Maintenance  ",Repairs and Maintenance,#N/A,#N/A,"11,608.40",200123,C.11502.136
14/04/2023,ZZH722398,1,13069,W H Good Ltd,390000,"Works - Construction, Repair & Maintenance  ",Repairs and Maintenance,#N/A,#N/A,"150,772.00",200123,C.11502.133
14/04/2023,ZZH722417,1,3529,Totally Local Company Ltd,350000,Street & Traffic Management  ,Fixtures and Fittings,Services to Place,Public Realm Inspect,"12,000.00",201202,10879
14/04/2023,ZZH722425,1,15643,South Manchester Care,320000,Social Community Care Supplies & Services  ,Care Payments,Services to People,DP - Respite,"20,800.00",530335,11513
14/04/2023,ZZH722427,1,6170,Greater Manchester TreeStation,390000,Supplies and services,Supplies and services,Services to Place,Nature-Arboriculture,"5,849.00",401600,11281
14/04/2023,ZZH722453,1,4369,Pennine Care NHS Trust,999999,Social Community Care Supplies & Services  ,Service Contract Payments,Services to People,PH-Drug & Alcohol,"304,038.00",561704,12731
14/04/2023,ZZH722454,1,4369,Pennine Care NHS Trust,999999,Social Community Care Supplies & Services  ,Service Contract Payments,Services to People,PH-Drug & Alcohol,"1,675,841.00",561704,12731
14/04/2023,ZZH722455,1,15639,Community Rail Lancashire,171113,Education Library Books ,Library Equipment,Services to Place,Crewe-Manchester RP,"4,000.00",400202,10083
14/04/2023,ZZH722455,2,15639,Community Rail Lancashire,171113,Education Library Books ,Library Equipment,Services to Place,South M/cr RP,"5,000.00",400202,10890
17/04/2023,ZZH722468,1,12313,Locala Community Partnership,310000,Healthcare  ,Third party payments - Public Sector,Services to People,PH-Sexual Health,"2,888,312.00",500401,12736
17/04/2023,ZZH722470,1,1799,Stockport Homes,150000,Consultancy   ,Professional Fees,Services to People,Brinnigton CC,"12,000.00",401007,12295
17/04/2023,ZZH722497,1,15378,Tile Hill Interim & Executive,999999,UNCLASSIFIED  ,MISCLASSIFIED? CHECK BEFORE PUBLICATION,Services to Place,Planning,"177,660.00",100100,12150
17/04/2023,ZZH722499,1,12367,Beech Hall School,261500,Human Resources Training & Conferences ,Fees and Charges,Services to People,SEN Independent Sch,"22,430.00",401024,10372
17/04/2023,ZZH722500,1,12367,Beech Hall School,261500,Human Resources Training & Conferences ,Fees and Charges,Services to People,SEN Independent Sch,"27,945.00",401024,10372
17/04/2023,ZZH722501,1,12367,Beech Hall School,261500,Human Resources Training & Conferences ,Fees and Charges,Services to People,SEN Independent Sch,"29,895.00",401024,10372
17/04/2023,ZZH722502,1,12367,Beech Hall School,261500,Human Resources Training & Conferences ,Fees and Charges,Services to People,SEN Independent Sch,"27,829.00",401024,10372
17/04/2023,ZZH722503,1,12367,Beech Hall School,261500,Human Resources Training & Conferences ,Fees and Charges,Services to People,SEN Independent Sch,"31,682.28",401024,10372
17/04/2023,ZZH722504,1,14243,Keys PCE Ltd,261500,Human Resources Training & Conferences ,Fees and Charges,Services to People,SEN Independent Sch,"47,970.00",401024,10372
17/04/2023,ZZH722505,1,14243,Keys PCE Ltd,261500,Human Resources Training & Conferences ,Fees and Charges,Services to People,SEN Independent Sch,"47,970.00",401024,10372
17/04/2023,ZZH722518,1,10841,Whistl UK Limited,300000,Mail Services�  ,Office Expenses,Corporate and Support Services,Mailroom Service,"25,000.00",400711,11152
17/04/2023,ZZH722519,1,3290,Royal Mail,300000,Mail Services�  ,Office Expenses,Corporate and Support Services,Mailroom Service,"15,000.00",400711,11152
17/04/2023,ZZH722530,1,2978,Teaching Personnel Ltd,261400,Human Resources Temporary & Agency Staff ,Agency Staff,Services to People,Home/Hospital Educ,"50,000.00",100290,12708
17/04/2023,ZZH722531,1,1339,Stockport NHS Foundation Trust,310000,Healthcare  ,Third party payments - Public Sector,Services to People,PH-Lifestyles,"18,800.00",500402,12737
17/04/2023,ZZH722541,1,15653,In4. 0 Group Limited,150000,Consultancy   ,Professional Fees,Services to Place,CDF Workspace Proj,"12,000.00",401007,13187
17/04/2023,ZZH722559,1,14984,PS Recruitment Specialists,320000,Social Community Care Supplies & Services  ,Care Payments,Services to People,DP - Respite,"5,049.00",530335,11513
17/04/2023,ZZH722560,1,15643,South Manchester Care,320000,Social Community Care Supplies & Services  ,Care Payments,Services to People,DP - Respite,"13,200.00",530335,11513
18/04/2023,ZZH722591,1,11860,OASIS UK,190000,Facilities & Management Services  ,Office Expenses,Corporate and Support Services,Info & Governance,"25,000.00",400703,11146
18/04/2023,ZZH722596,1,15653,In4. 0 Group Limited,150000,Consultancy   ,Professional Fees,Services to Place,CDF Workspace Proj,"78,000.00",401007,13187
18/04/2023,ZZH722597,1,14349,madlab,290000,Arts & Leisure Services  ,Professional Fees,Services to Place,CDF Workspace Proj,"26,190.00",401001,13187
18/04/2023,ZZH722598,1,2978,Teaching Personnel Ltd,261500,Human Resources Training & Conferences ,Fees and Charges,Services to People,Education Access,"100,000.00",401024,10744
18/04/2023,ZZH722602,1,14243,Keys PCE Ltd,261500,Human Resources Training & Conferences ,Fees and Charges,Services to People,SEN Independent Sch,"103,047.01",401024,10372
18/04/2023,ZZH722603,1,1699,Mary Hare School,261500,Human Resources Training & Conferences ,Fees and Charges,Services to People,SEN NMSS School Fees,"64,903.00",401024,12710
18/04/2023,ZZH722604,1,1722,The Together Trust Centre,261500,Human Resources Training & Conferences ,Fees and Charges,Services to People,SEN NMSS School Fees,"66,187.80",401024,12710
18/04/2023,ZZH722605,1,12269,PENARTH GROUP,261500,Human Resources Training & Conferences ,Fees and Charges,Services to People,SEN Independent Sch,"70,916.00",401024,10372
18/04/2023,ZZH722606,1,10985,Broadstones School Ltd,261500,Human Resources Training & Conferences ,Fees and Charges,Services to People,SEN Independent Sch,"52,000.00",401024,10372
18/04/2023,ZZH722607,1,11466,High Peak School Ltd,261500,Human Resources Training & Conferences ,Fees and Charges,Services to People,SEN Independent Sch,"61,400.00",401024,10372
18/04/2023,ZZH722608,1,11466,High Peak School Ltd,261500,Human Resources Training & Conferences ,Fees and Charges,Services to People,SEN Independent Sch,"58,467.00",401024,10372
18/04/2023,ZZH722609,1,11466,High Peak School Ltd,261500,Human Resources Training & Conferences ,Fees and Charges,Services to People,SEN Independent Sch,"58,467.00",401024,10372
18/04/2023,ZZH722610,1,12180,Acorn Care and Education,261500,Human Resources Training & Conferences ,Fees and Charges,Services to People,SEN Independent Sch,"77,500.00",401024,10372
18/04/2023,ZZH722611,1,11466,High Peak School Ltd,261500,Human Resources Training & Conferences ,Fees and Charges,Services to People,SEN Independent Sch,"58,467.00",401024,10372
18/04/2023,ZZH722612,1,11466,High Peak School Ltd,261500,Human Resources Training & Conferences ,Fees and Charges,Services to People,SEN Independent Sch,"58,467.00",401024,10372
18/04/2023,ZZH722613,1,11466,High Peak School Ltd,261500,Human Resources Training & Conferences ,Fees and Charges,Services to People,SEN Independent Sch,"56,506.00",401024,10372
18/04/2023,ZZH722614,1,11466,High Peak School Ltd,261500,Human Resources Training & Conferences ,Fees and Charges,Services to People,SEN Independent Sch,"56,506.00",401024,10372
18/04/2023,ZZH722615,1,11466,High Peak School Ltd,261500,Human Resources Training & Conferences ,Fees and Charges,Services to People,SEN Independent Sch,"61,400.00",401024,10372
18/04/2023,ZZH722616,1,11466,High Peak School Ltd,261500,Human Resources Training & Conferences ,Fees and Charges,Services to People,SEN Independent Sch,"56,506.00",401024,10372
18/04/2023,ZZH722617,1,11466,High Peak School Ltd,261500,Human Resources Training & Conferences ,Fees and Charges,Services to People,SEN Independent Sch,"56,506.00",401024,10372
18/04/2023,ZZH722618,1,11466,High Peak School Ltd,261500,Human Resources Training & Conferences ,Fees and Charges,Services to People,SEN Independent Sch,"56,505.00",401024,10372
18/04/2023,ZZH722619,1,11466,High Peak School Ltd,261500,Human Resources Training & Conferences ,Fees and Charges,Services to People,SEN Independent Sch,"56,506.00",401024,10372
18/04/2023,ZZH722620,1,11466,High Peak School Ltd,261500,Human Resources Training & Conferences ,Fees and Charges,Services to People,SEN Independent Sch,"58,476.00",401024,10372
18/04/2023,ZZH722621,1,12180,Acorn Care and Education,261500,Human Resources Training & Conferences ,Fees and Charges,Services to People,SEN Independent Sch,"52,790.00",401024,10372
18/04/2023,ZZH722622,1,11466,High Peak School Ltd,261500,Human Resources Training & Conferences ,Fees and Charges,Services to People,SEN Independent Sch,"56,506.99",401024,10372
18/04/2023,ZZH722623,1,11466,High Peak School Ltd,261500,Human Resources Training & Conferences ,Fees and Charges,Services to People,SEN Independent Sch,"56,506.00",401024,10372
18/04/2023,ZZH722624,1,11466,High Peak School Ltd,261500,Human Resources Training & Conferences ,Fees and Charges,Services to People,SEN Independent Sch,"56,506.00",401024,10372
18/04/2023,ZZH722626,1,35,CBC Computer Systems Ltd,270000,Information Communication Technology  ,Information and Communications Technology,Corporate and Support Services,Members Services,"8,463.00",402001,11111
18/04/2023,ZZH722633,1,12959,Apollo Home Healtcare,310000,Healthcare  ,Third party payments - Public Sector,Services to People,SEN Specific support,"14,332.50",500402,10300
18/04/2023,ZZH722634,1,8423,SMS Coaching Limited,261500,Human Resources Training & Conferences ,Fees and Charges,Services to People,SEN Independent Sch,"15,833.33",401024,10372
18/04/2023,ZZH722635,1,8423,SMS Coaching Limited,261500,Human Resources Training & Conferences ,Fees and Charges,Services to People,SEN Independent Sch,"22,879.17",401024,10372
18/04/2023,ZZH722636,1,12191,WILMSLOW HIGH SCHOOL,170000,Education  ,Third party payments - Public Sector,Services to People,OLA pupils,"10,750.00",500304,10371
18/04/2023,ZZH722638,1,15041,Styal Primary School,170000,Education  ,Third party payments - Public Sector,Services to People,OLA pupils,"10,705.00",500304,10371
18/04/2023,ZZH722641,1,15517,Fallibroome Academy,170000,Education  ,Third party payments - Public Sector,Services to People,OLA pupils,"12,850.00",500304,10371
18/04/2023,ZZH722647,1,1699,Mary Hare School,261500,Human Resources Training & Conferences ,Fees and Charges,Services to People,SEN NMSS School Fees,"44,269.00",401024,12710
18/04/2023,ZZH722648,1,12269,PENARTH GROUP,261500,Human Resources Training & Conferences ,Fees and Charges,Services to People,SEN Independent Sch,"38,000.00",401024,10372
18/04/2023,ZZH722649,1,12269,PENARTH GROUP,261500,Human Resources Training & Conferences ,Fees and Charges,Services to People,SEN Independent Sch,"38,000.00",401024,10372
18/04/2023,ZZH722650,1,12269,PENARTH GROUP,261500,Human Resources Training & Conferences ,Fees and Charges,Services to People,SEN Independent Sch,"38,000.00",401024,10372
18/04/2023,ZZH722651,1,12269,PENARTH GROUP,261500,Human Resources Training & Conferences ,Fees and Charges,Services to People,SEN Independent Sch,"38,000.00",401024,10372
18/04/2023,ZZH722653,1,12269,PENARTH GROUP,261500,Human Resources Training & Conferences ,Fees and Charges,Services to People,SEN Independent Sch,"38,000.00",401024,10372
18/04/2023,ZZH722654,1,12269,PENARTH GROUP,261500,Human Resources Training & Conferences ,Fees and Charges,Services to People,SEN Independent Sch,"15,822.92",401024,10372
18/04/2023,ZZH722655,1,12269,PENARTH GROUP,261500,Human Resources Training & Conferences ,Fees and Charges,Services to People,SEN Independent Sch,"38,000.00",401024,10372
18/04/2023,ZZH722656,1,10985,Broadstones School Ltd,261500,Human Resources Training & Conferences ,Fees and Charges,Services to People,SEN Independent Sch,"13,000.00",401024,10372
18/04/2023,ZZH722657,1,10985,Broadstones School Ltd,261500,Human Resources Training & Conferences ,Fees and Charges,Services to People,SEN Independent Sch,"39,000.00",401024,10372
18/04/2023,ZZH722658,1,10985,Broadstones School Ltd,261500,Human Resources Training & Conferences ,Fees and Charges,Services to People,SEN Independent Sch,"39,000.00",401024,10372
18/04/2023,ZZH722659,1,10985,Broadstones School Ltd,261500,Human Resources Training & Conferences ,Fees and Charges,Services to People,SEN Independent Sch,"16,250.00",401024,10372
18/04/2023,ZZH722660,1,10985,Broadstones School Ltd,261500,Human Resources Training & Conferences ,Fees and Charges,Services to People,SEN Independent Sch,"13,000.00",401024,10372
18/04/2023,ZZH722661,1,10985,Broadstones School Ltd,261500,Human Resources Training & Conferences ,Fees and Charges,Services to People,SEN Independent Sch,"39,000.00",401024,10372
18/04/2023,ZZH722662,1,10985,Broadstones School Ltd,261500,Human Resources Training & Conferences ,Fees and Charges,Services to People,SEN Independent Sch,"13,000.00",401024,10372
18/04/2023,ZZH722663,1,10985,Broadstones School Ltd,261500,Human Resources Training & Conferences ,Fees and Charges,Services to People,SEN Independent Sch,"39,000.00",401024,10372
18/04/2023,ZZH722664,1,10985,Broadstones School Ltd,261500,Human Resources Training & Conferences ,Fees and Charges,Services to People,SEN Independent Sch,"39,000.00",401024,10372
18/04/2023,ZZH722665,1,10985,Broadstones School Ltd,261500,Human Resources Training & Conferences ,Fees and Charges,Services to People,SEN Independent Sch,"13,000.00",401024,10372
18/04/2023,ZZH722666,1,10985,Broadstones School Ltd,261500,Human Resources Training & Conferences ,Fees and Charges,Services to People,SEN Independent Sch,"39,000.00",401024,10372
18/04/2023,ZZH722667,1,10985,Broadstones School Ltd,261500,Human Resources Training & Conferences ,Fees and Charges,Services to People,SEN Independent Sch,"39,000.00",401024,10372
18/04/2023,ZZH722668,1,10985,Broadstones School Ltd,261500,Human Resources Training & Conferences ,Fees and Charges,Services to People,SEN Independent Sch,"21,666.67",401024,10372
19/04/2023,ZZH722714,1,3707,Salford City Council/Finance,999999,Social Community Care Supplies & Services  ,Service Contract Payments,Services to People,PH-Sexual Health,"30,000.00",561704,12736
19/04/2023,ZZH722720,1,14317,Ridge and Partners LLP,390000,"Works - Construction, Repair & Maintenance  ",Repairs and Maintenance,#N/A,#N/A,"24,700.00",200123,C.10904.012
19/04/2023,ZZH722720,1,14317,Ridge and Partners LLP,390000,"Works - Construction, Repair & Maintenance  ",Repairs and Maintenance,#N/A,#N/A,"24,700.00",200123,C.11021.001
19/04/2023,ZZH722729,1,10105,Mastercall Healthcare,390000,Supplies and services,Supplies and services,Services to People,PH-Communities,"49,584.00",401600,12738
19/04/2023,ZZH722730,1,8806,Manchester City Council Int,999999,Third party payments - Public Sector,Third party payments - Public Sector,Services to People,PH-GUM Services,"97,496.00",500303,12745
20/04/2023,ZZH722760,1,14414,MEADOWS CARE LTD,261500,Human Resources Training & Conferences ,Fees and Charges,Services to People,SEN Independent Sch,"51,740.00",401024,10372
20/04/2023,ZZH722761,1,8423,SMS Coaching Limited,261500,Human Resources Training & Conferences ,Fees and Charges,Services to People,SEN Independent Sch,"58,000.00",401024,10372
20/04/2023,ZZH722762,1,8423,SMS Coaching Limited,261500,Human Resources Training & Conferences ,Fees and Charges,Services to People,SEN Independent Sch,"54,910.00",401024,10372
20/04/2023,ZZH722768,1,757,Transport for Greater Manchest,999999,Fees and Charges,Fees and Charges,Services to Place,Highways-Network Man,"6,689.00",401036,11968
20/04/2023,ZZH722769,1,3771,Warrington MBC,999999,Third party payments - Public Sector,Third party payments - Public Sector,Services to People,Regional Imp Allianc,"67,000.00",500303,13031
20/04/2023,ZZH722808,1,12269,PENARTH GROUP,261500,Human Resources Training & Conferences ,Fees and Charges,Services to People,SEN Independent Sch,"38,000.00",401024,10372
20/04/2023,ZZH722809,1,10985,Broadstones School Ltd,261500,Human Resources Training & Conferences ,Fees and Charges,Services to People,SEN Independent Sch,"39,000.00",401024,10372
20/04/2023,ZZH722810,1,12263,Ashgate Specialist Support Pri,170000,Education  ,Third party payments - Public Sector,Services to People,OLA pupils,"9,300.00",500304,10371
20/04/2023,ZZH722811,1,12263,Ashgate Specialist Support Pri,170000,Education  ,Third party payments - Public Sector,Services to People,OLA pupils,"9,965.00",500304,10371
20/04/2023,ZZH722812,1,6702,Cheshire West and Chester Coun,170000,Education  ,Third party payments - Public Sector,Services to People,OLA pupils,"6,122.00",500304,10371
20/04/2023,ZZH722826,1,15175,Wybone Limited,350000,Street & Traffic Management  ,Fixtures and Fittings,Services to Place,Public Realm Inspect,"17,600.00",201202,10879
21/04/2023,ZZH722873,1,12686,Di Clarke,999999,Fees and Charges,Fees and Charges,Services to People,Yth Justice EarlyInt,"10,000.00",402404,11787
21/04/2023,ZZH722874,1,12024,REMEDI - RESTORATIVE SERVICES,999999,Fees and Charges,Fees and Charges,Services to People,YOS Non-Staffing,"47,396.00",402404,11503
21/04/2023,ZZH722875,1,5892,Groundwork Greater Manchester,999999,Fees and Charges,Fees and Charges,Services to People,YJB Junior Asmt Ctrs,"12,500.00",402404,10431
21/04/2023,ZZH722876,1,14737,Hatters Project Ltd,290000,Arts & Leisure Services  ,Publicity and Promotion,Services to People,GMCA CS Grant,"5,511.00",401801,11505
21/04/2023,ZZH722881,1,10655,West March Systems Ltd,270000,Information Communication Technology  ,Information and Communications Technology,Services to Place,Contin Educ Service,"12,000.00",402010,10511
21/04/2023,ZZH722882,1,11705,Parents in Partnership Stockpo,290000,Arts & Leisure Services  ,Publicity and Promotion,Services to People,ASD Service,"10,000.00",401801,12742
21/04/2023,ZZH722885,1,12856,Manchester United Foundation,290000,Arts & Leisure Services  ,Publicity and Promotion,Services to People,GMCA CS Grant,"9,590.00",401801,11505
24/04/2023,ZZH722898,1,15111,Active Communities Experiences,150000,Consultancy   ,Professional Fees,Services to People,PH-Physical Activity,"7,500.00",401020,12834
24/04/2023,ZZH722899,1,6170,Greater Manchester TreeStation,190000,Facilities & Management Services  ,Fixtures and Fittings,Services to Place,Memorial Benches,"2,780.00",201201,11279
24/04/2023,ZZH722899,2,6170,Greater Manchester TreeStation,190000,Facilities & Management Services  ,Fixtures and Fittings,Services to Place,Memorial Benches,"3,185.00",201201,11279
24/04/2023,ZZH722901,1,15602,Blakedown Sport & Play Limited,240000,Horticultural  ,Grounds Maintenance,#N/A,#N/A,"8,153.00",202032,C.10775
24/04/2023,ZZH722905,1,13874,HUMAN SUPPORT GROUP LTD,320000,Social Community Care Supplies & Services  ,Care Payments,Services to People,Heald Green ECH,"178,000.00",530332,13051
24/04/2023,ZZH722906,1,13874,HUMAN SUPPORT GROUP LTD,320000,Social Community Care Supplies & Services  ,Care Payments,Services to People,Edgeley ECH,"270,000.00",530332,13049
24/04/2023,ZZH722907,1,4617,Creative Support Ltd,320000,Social Community Care Supplies & Services  ,Care Payments,Services to People,Reddish ECH,"305,000.00",530332,13048
24/04/2023,ZZH722935,1,4083,Hulme Hall School,261500,Human Resources Training & Conferences ,Fees and Charges,Services to People,SEN Independent Sch,"6,029.78",401024,10372
24/04/2023,ZZH722936,1,4083,Hulme Hall School,261500,Human Resources Training & Conferences ,Fees and Charges,Services to People,SEN Independent Sch,"29,416.20",401024,10372
24/04/2023,ZZH722955,1,2109,Rochdale MBC,999999,Third party payments - Public Sector,Third party payments - Public Sector,Services to People,Regional Imp Allianc,"41,500.00",500303,13031
24/04/2023,ZZH722962,1,11667,MYCLOUD LIMITED,999999,Fees and Charges,Fees and Charges,Services to People,MOS - Mosaic Mngmnt,"20,000.00",401035,11430
25/04/2023,ZZH722975,1,423,Wigan MBC,261300,Human Resources Recruitment & Assessment ,Advertising,Corporate and Support Services,POD Core Staffing,"15,045.00",102040,12590
25/04/2023,ZZH722979,1,14778,Bellrock Property and Facilite,390000,"Works - Construction, Repair & Maintenance  ",Repairs and Maintenance,Services to Place,Leisure Level Up Fun,"37,800.00",200123,13124
25/04/2023,ZZH722989,1,15055,Heathlands Nursery Primary and,170000,Education  ,Third party payments - Public Sector,Services to People,OLA pupils,"32,430.00",500304,10371
25/04/2023,ZZH722990,1,15055,Heathlands Nursery Primary and,170000,Education  ,Third party payments - Public Sector,Services to People,OLA pupils,"32,430.00",500304,10371
25/04/2023,ZZH722991,1,7202,Quadient UK Ltd,300000,Mail Services�  ,Office Expenses,Corporate and Support Services,Mailroom Service,"8,557.06",400711,11152
25/04/2023,ZZH722992,1,15641,Drax Energy Solutions Ltd,370000,Utilities   ,Utilities,Services to People,Brinnigton CC,"35,000.00",200510,12295
25/04/2023,ZZH722993,1,15661,Corona Energy Retail 4 Ltd,370000,Utilities   ,Utilities,Services to People,Brinnigton CC,"35,000.00",200550,12295
25/04/2023,ZZH722998,1,3529,Totally Local Company Ltd,290000,Arts & Leisure Services  ,Publicity and Promotion,Services to Place,Highways-Network Man,"10,000.00",401801,11968
25/04/2023,ZZH723028,1,10499,Gravitas Recruitment Group Lim,270000,Information Communication Technology  ,Information and Communications Technology,Corporate and Support Services,Business Intelligenc,"6,600.00",402004,11872
25/04/2023,ZZH723030,1,1799,Stockport Homes,999999,UNCLASSIFIED  ,MISCLASSIFIED? CHECK BEFORE PUBLICATION,Services to People,Safer Streets,"8,900.00",100100,13194
25/04/2023,ZZH723034,1,12024,REMEDI - RESTORATIVE SERVICES,999999,Fees and Charges,Fees and Charges,Services to People,Safer Streets,"10,000.00",402404,13194
25/04/2023,ZZH723035,1,815,University of Manchester,210000,Furniture & Soft Furnishings  ,Furniture and Equipment,Services to People,Safer Streets,"10,000.00",400115,13194
25/04/2023,ZZH723037,1,1104,Age UK Stockport,150000,Consultancy   ,Professional Fees,Services to People,PH-Physical Activity,"13,757.00",401020,12834
25/04/2023,ZZH723038,1,15082,Stockport Active CIC,150000,Consultancy   ,Professional Fees,Services to People,PH-Physical Activity,"25,000.00",401020,12834
25/04/2023,ZZH723045,1,10858,Acorn Recovery Projects,261500,Human Resources Training & Conferences ,Fees and Charges,Services to Place,Contin Educ Service,"34,660.45",401024,10511
25/04/2023,ZZH723049,1,13860,Howard Lynn Property Ltd,261400,Human Resources Temporary & Agency Staff ,Agency Staff,Services to Place,Property Client Acct,"7,267.42",100290,12328
25/04/2023,ZZH723083,1,11539,Bolinda UK Limited,171113,Education Library Books ,Library Equipment,Corporate and Support Services,Library Dev & Res,"7,158.52",400201,11328
25/04/2023,ZZH723088,1,1382,Pure Innovations Ltd,390000,Supplies and services,Supplies and services,Services to People,Pure Innovations,"152,000.00",401600,11071
26/04/2023,ZZH723095,1,35,CBC Computer Systems Ltd,270000,Information Communication Technology  ,Information and Communications Technology,Services to People,OT Shared Lives,"5,375.00",402001,13196
26/04/2023,ZZH723095,2,35,CBC Computer Systems Ltd,270000,Information Communication Technology  ,Information and Communications Technology,Services to People,OT Shared Lives,598.75,402001,13196
26/04/2023,ZZH723096,1,7628,Schools ICT Service Ltd,390000,"Works - Construction, Repair & Maintenance  ",Fees and Charges,Corporate and Support Services,IT SIMS,"9,200.00",401017,10422
26/04/2023,ZZH723104,1,12856,Manchester United Foundation,290000,Arts & Leisure Services  ,Publicity and Promotion,Services to People,GMCA CS Grant,"9,590.00",401801,11505
26/04/2023,ZZH723108,1,1339,Stockport NHS Foundation Trust,310000,Healthcare  ,Third party payments - Public Sector,Corporate and Support Services,U-Coroners Ct-Genera,"8,000.00",500401,10965
26/04/2023,ZZH723109,1,15126,Bates & Holland Funeral Servic,381600,Vehicle Management Hire/Leasing ,Leasing /Transport Hire,Corporate and Support Services,U-Coroners Ct-Genera,"8,000.00",300302,10965
26/04/2023,ZZH723119,1,3529,Totally Local Company Ltd,240000,Horticultural  ,Grounds Maintenance,Services to People,Schools Contingency,"18,860.58",202030,10437
26/04/2023,ZZH723120,1,6748,GEORGE COX & SONS LTD,390000,Supplies and services,Supplies and services,Services to People,Condition Surveys,"5,941.32",401600,10734
26/04/2023,ZZH723125,1,10957,TAMESIDE HOSPITAL NHS FOUNDATI,310000,Healthcare  ,Third party payments - Public Sector,Corporate and Support Services,U-Coroners Ct-Genera,"8,000.00",500401,10965
26/04/2023,ZZH723131,1,12364,Stockport Beds & Sofas Ltd,310000,Healthcare  ,Third party payments - Public Sector,Services to People,CYP PH Contracts,"5,671,176.00",500401,13034
26/04/2023,ZZH723135,1,12608,Liquidlogic Limited,270000,Information Communication Technology  ,Information and Communications Technology,Services to People,AOM costs,"11,275.00",402010,11878
26/04/2023,ZZH723135,2,12608,Liquidlogic Limited,270000,Information Communication Technology  ,Information and Communications Technology,Services to People,AOM costs,"13,199.00",402010,11878
26/04/2023,ZZH723136,1,13596,STOCKPORT PROGRESS AND RECOVER,999999,Fees and Charges,Fees and Charges,Services to People,SPARC,"182,000.00",402404,11674
26/04/2023,ZZH723137,1,4579,Prospero Teaching,320000,Social Community Care Supplies & Services  ,Care Payments,Services to People,DP - Respite,"6,500.00",530358,11513
26/04/2023,ZZH723138,1,11820,NHS BUSINESS SERVICES AUTHORIT,999999,Fees and Charges,Fees and Charges,Services to People,PH-Drug & Alcohol,"343,000.00",401035,12731
26/04/2023,ZZH723139,1,14663,CHILD ACTION NORTHWEST,999999,Fees and Charges,Fees and Charges,Services to People,YOS Non-Staffing,"8,000.00",402404,11503
26/04/2023,ZZH723145,1,8233,MGB Plastics Ltd,182020,Environmental Services Waste Management,Waste Management Equipment,Services to Place,Wheelie Bins,"15,456.00",400401,10864
26/04/2023,ZZH723153,1,15378,Tile Hill Interim & Executive,210000,Furniture & Soft Furnishings  ,Furniture and Equipment,Services to People,"Aids, Equip & Maint","24,000.00",400105,11658
26/04/2023,ZZH723156,1,4579,Prospero Teaching,320000,Social Community Care Supplies & Services  ,Care Payments,Services to People,DP - Respite,"6,500.00",530358,11513
26/04/2023,ZZH723167,1,4272,Civica UK Ltd,150000,Consultancy   ,Professional Fees,Corporate and Support Services,Bentax,"52,196.84",401020,11139
26/04/2023,ZZH723169,1,815,University of Manchester,210000,Furniture & Soft Furnishings  ,Furniture and Equipment,Services to People,Safer Streets,"10,000.00",400115,13194
26/04/2023,ZZH723171,1,15208,Plymouth Grove Primary School,170000,Education  ,Third party payments - Public Sector,Services to People,OLA pupils,"54,168.00",500304,10371
26/04/2023,ZZH723172,1,1722,The Together Trust Centre,150000,Consultancy   ,Professional Fees,Services to People,SEN Specific support,"498,048.00",401020,10300
26/04/2023,ZZH723173,1,12180,Acorn Care and Education,261500,Human Resources Training & Conferences ,Fees and Charges,Services to People,SEN Independent Sch,"70,264.22",401024,10372
27/04/2023,ZZH723182,1,757,Transport for Greater Manchest,150000,Consultancy   ,Professional Fees,#N/A,#N/A,"10,200.00",401007,C.01578.201
27/04/2023,ZZH723185,1,1781,Animal Wardens,180010,Environmental Services Animal Services ,Animal Welfare,Services to Place,Dog Warden Service,"12,000.00",401206,10902
27/04/2023,ZZH723197,1,1339,Stockport NHS Foundation Trust,260000,Human Resources  ,Other Payments,Services to People,Domestic Abuse Bill,"32,754.00",100304,13111
27/04/2023,ZZH723198,1,1339,Stockport NHS Foundation Trust,260000,Human Resources  ,Other Payments,Services to People,Domestic Abuse Bill,"27,295.00",100304,13111
27/04/2023,ZZH723227,1,13805,Dane Bank Primary School,170000,Education  ,Third party payments - Public Sector,Services to People,OLA pupils,"5,072.68",500304,10371
27/04/2023,ZZH723228,1,13805,Dane Bank Primary School,170000,Education  ,Third party payments - Public Sector,Services to People,OLA pupils,"16,110.00",500304,10371
27/04/2023,ZZH723234,1,15662,Mobility For You Ltd,181800,Environmental Services Technical Equipment ,Furniture and Equipment,Services to People,DP - CEAS,"5,612.00",400110,12189
27/04/2023,ZZH723238,1,15188,Specialist Light Halage Soluti,210000,Furniture & Soft Furnishings  ,Furniture and Equipment,Corporate and Support Services,Local Election,"12,500.00",400120,12102
27/04/2023,ZZH723240,1,13393,Valtech Limited,390000,"Works - Construction, Repair & Maintenance  ",Fees and Charges,Corporate and Support Services,Driver Assessment,"8,500.00",401017,11113
27/04/2023,ZZH723264,1,6748,GEORGE COX & SONS LTD,391114,"Works - Construction, Repair & Maintenance Buildings Surveys",Capital Expenditure - Fees,Services to Place,Property Client Acct,"87,325.61",200316,11137
27/04/2023,ZZH723272,1,1339,Stockport NHS Foundation Trust,310000,Healthcare  ,Third party payments - Public Sector,Services to People,CYP PH Contracts,"5,671,176.00",500401,13034
28/04/2023,ZZH723290,1,13414,Horizon Care & Education Group,261500,Human Resources Training & Conferences ,Fees and Charges,Services to People,SEN Specific support,"108,266.20",401024,10300
28/04/2023,ZZH723293,1,3529,Totally Local Company Ltd,390000,Supplies and services,Supplies and services,Services to Place,Nature-Arboriculture,"6,600.00",401600,11281
28/04/2023,ZZH723307,1,7025,CBRE Limited,150000,Consultancy   ,Professional Fees,Services to Place,Community Buildings,520,401020,11392
28/04/2023,ZZH723307,2,7025,CBRE Limited,150000,Consultancy   ,Professional Fees,Services to Place,Community Buildings,"3,800.00",401020,11392
28/04/2023,ZZH723307,3,7025,CBRE Limited,150000,Consultancy   ,Professional Fees,Services to Place,Community Buildings,715,401020,11392
28/04/2023,ZZH723307,4,7025,CBRE Limited,150000,Consultancy   ,Professional Fees,Services to Place,Community Buildings,"3,300.00",401020,11392
28/04/2023,ZZH723309,1,2522,Donald Insall Associates,150000,Consultancy   ,Professional Fees,Services to Place,Community Buildings,"1,200.00",401020,11392
28/04/2023,ZZH723309,2,2522,Donald Insall Associates,150000,Consultancy   ,Professional Fees,Services to Place,Community Buildings,"3,000.00",401020,11392
28/04/2023,ZZH723309,3,2522,Donald Insall Associates,150000,Consultancy   ,Professional Fees,Services to Place,Community Buildings,"21,600.00",401020,11392
28/04/2023,ZZH723309,4,2522,Donald Insall Associates,150000,Consultancy   ,Professional Fees,Services to Place,Community Buildings,"1,500.00",401020,11392
28/04/2023,ZZH723319,1,15641,Drax Energy Solutions Ltd,370000,Utilities   ,Utilities,Services to Place,Street Lighting Ener,"1,980,000.00",200514,12031
28/04/2023,ZZH723333,1,1799,Stockport Homes,320000,Social Community Care Supplies & Services  ,Third party payments - Private/Voluntary Sector,Corporate and Support Services,Benefit & Debt Advce,"10,000.00",402403,11322
28/04/2023,ZZH723334,1,4708,The Dodd Group,390000,"Works - Construction, Repair & Maintenance  ",Repairs and Maintenance,#N/A,#N/A,"1,240,000.00",200123,C.11507.004
28/04/2023,ZZH723335,1,11932,THOMSON REUTERS LTD,171113,Education Library Books ,Library Equipment,Corporate and Support Services,Legal Services,"37,617.24",400202,11117
28/04/2023,ZZH723338,1,3529,Totally Local Company Ltd,390000,"Works - Construction, Repair & Maintenance  ",Capital Expenditure - Works,#N/A,#N/A,"5,159.31",200304,C.00658
28/04/2023,ZZH723340,1,15673,Invest in play Ltd,290000,Arts & Leisure Services  ,Publicity and Promotion,Services to People,EPEC Programme,"16,000.00",401801,13037
28/04/2023,ZZH723352,1,15152,Mr Kevin Dowd,150000,Consultancy   ,Professional Fees,Services to People,SC - Broadfield,"4,500.00",401007,11443
28/04/2023,ZZH723352,1,15152,Mr Kevin Dowd,150000,Consultancy   ,Professional Fees,Services to People,SC - Dial Park,"4,500.00",401007,11447
28/04/2023,ZZH723354,1,178,Trafford Council,999999,Fees and Charges,Fees and Charges,Corporate and Support Services,STaR Procurement,"413,792.00",402407,11136
02/05/2023,ZZH723362,1,10337,SIGNPOST STOCKPORT for CARERS,320000,Social Community Care Supplies & Services  ,Third party payments - Private/Voluntary Sector,Services to People,PH-Mental Wellbeing,"2,500.00",402403,12734
02/05/2023,ZZH723362,2,10337,SIGNPOST STOCKPORT for CARERS,320000,Social Community Care Supplies & Services  ,Third party payments - Private/Voluntary Sector,Services to People,PH-Mental Wellbeing,"2,500.00",402403,12734
02/05/2023,ZZH723362,3,10337,SIGNPOST STOCKPORT for CARERS,320000,Social Community Care Supplies & Services  ,Third party payments - Private/Voluntary Sector,Services to People,PH-Mental Wellbeing,"2,500.00",402403,12734
02/05/2023,ZZH723362,4,10337,SIGNPOST STOCKPORT for CARERS,320000,Social Community Care Supplies & Services  ,Third party payments - Private/Voluntary Sector,Services to People,PH-Mental Wellbeing,"2,500.00",402403,12734
02/05/2023,ZZH723364,1,3239,ARC,320000,Social Community Care Supplies & Services  ,Third party payments - Private/Voluntary Sector,Services to People,PH-Mental Wellbeing,"2,490.00",402403,12734
02/05/2023,ZZH723364,2,3239,ARC,320000,Social Community Care Supplies & Services  ,Third party payments - Private/Voluntary Sector,Services to People,PH-Mental Wellbeing,"2,490.00",402403,12734
02/05/2023,ZZH723364,3,3239,ARC,320000,Social Community Care Supplies & Services  ,Third party payments - Private/Voluntary Sector,Services to People,PH-Mental Wellbeing,"2,490.00",402403,12734
02/05/2023,ZZH723364,4,3239,ARC,320000,Social Community Care Supplies & Services  ,Third party payments - Private/Voluntary Sector,Services to People,PH-Mental Wellbeing,"2,490.00",402403,12734
02/05/2023,ZZH723384,1,14934,Better Communications CIC,150000,Consultancy   ,Professional Fees,Services to People,SEN Specific support,"12,969.00",401020,10300
02/05/2023,ZZH723384,2,14934,Better Communications CIC,150000,Consultancy   ,Professional Fees,Services to People,SEN Specific support,"7,765.75",401020,10300
02/05/2023,ZZH723389,1,4579,Prospero Teaching,320000,Social Community Care Supplies & Services  ,Care Payments,Services to People,DP - Respite,"7,550.00",530358,11513
02/05/2023,ZZH723404,1,6803,Bibliotheca Ltd,270000,Information Communication Technology  ,Information and Communications Technology,Corporate and Support Services,Public Libraries Gen,"9,834.54",402010,11329
02/05/2023,ZZH723404,2,6803,Bibliotheca Ltd,270000,Information Communication Technology  ,Information and Communications Technology,Corporate and Support Services,Public Libraries Gen,"1,500.00",402010,11329
02/05/2023,ZZH723410,1,4708,The Dodd Group,390000,"Works - Construction, Repair & Maintenance  ",Repairs and Maintenance,#N/A,#N/A,"1,240,000.00",200123,C.00405
02/05/2023,ZZH723423,1,1722,The Together Trust Centre,320000,Social Community Care Supplies & Services  ,Care Payments,Services to People,DP - Respite,"7,956.00",530335,11513
02/05/2023,ZZH723443,1,15394,Family Care Group,170000,Education  ,Third party payments - Public Sector,Services to People,OLA pupils,"19,930.00",500304,10371
02/05/2023,ZZH723445,1,13002,SpeechWise Speech and Language,150000,Consultancy   ,Professional Fees,Services to People,SEN Specific support,"48,571.56",401020,10300
02/05/2023,ZZH723446,1,13002,SpeechWise Speech and Language,150000,Consultancy   ,Professional Fees,Services to People,SEN Specific support,"41,666.52",401020,10300
02/05/2023,ZZH723449,1,12367,Beech Hall School,261500,Human Resources Training & Conferences ,Fees and Charges,Services to People,SEN Independent Sch,"7,700.00",401024,10372
02/05/2023,ZZH723454,1,15179,Hamptons Resourcing,210000,Furniture & Soft Furnishings  ,Furniture and Equipment,Services to People,"Aids, Equip & Maint","24,000.00",400105,11658
03/05/2023,ZZH723475,1,3529,Totally Local Company Ltd,130000,Cleaning & Janitorial  ,Cleaning,Services to People,EHP CC Abacus,"19,929.79",201602,10844
03/05/2023,ZZH723487,1,8423,SMS Coaching Limited,261500,Human Resources Training & Conferences ,Fees and Charges,Services to People,SEN Independent Sch,"58,000.00",401024,10372
03/05/2023,ZZH723488,1,8423,SMS Coaching Limited,261500,Human Resources Training & Conferences ,Fees and Charges,Services to People,SEN Independent Sch,"58,000.00",401024,10372
03/05/2023,ZZH723489,1,8423,SMS Coaching Limited,261500,Human Resources Training & Conferences ,Fees and Charges,Services to People,SEN Independent Sch,"58,000.00",401024,10372
03/05/2023,ZZH723490,1,11466,High Peak School Ltd,261500,Human Resources Training & Conferences ,Fees and Charges,Services to People,SEN Independent Sch,"56,506.00",401024,10372
03/05/2023,ZZH723502,1,865,Bethell Construction Ltd,390000,"Works - Construction, Repair & Maintenance  ",Capital Expenditure - Works,#N/A,#N/A,"458,193.94",200304,C.01179.203
04/05/2023,ZZH723558,1,9456,Grange School,170000,Education  ,Third party payments - Public Sector,Services to People,OLA pupils,"11,000.00",500304,10371
04/05/2023,ZZH723559,1,9456,Grange School,170000,Education  ,Third party payments - Public Sector,Services to People,OLA pupils,"11,000.00",500304,10371
04/05/2023,ZZH723561,1,12268,The Orchards,261500,Human Resources Training & Conferences ,Fees and Charges,Services to People,OLA pupils,"27,153.76",401024,10371
04/05/2023,ZZH723562,1,8423,SMS Coaching Limited,261500,Human Resources Training & Conferences ,Fees and Charges,Services to People,SEN Independent Sch,"46,675.00",401024,10372
04/05/2023,ZZH723563,1,8423,SMS Coaching Limited,261500,Human Resources Training & Conferences ,Fees and Charges,Services to People,SEN Independent Sch,"38,000.00",401024,10372
04/05/2023,ZZH723563,2,8423,SMS Coaching Limited,381600,Vehicle Management Hire/Leasing ,Leasing /Transport Hire,Services to People,SEN Trans-Home to Sc,"10,000.00",300302,10373
04/05/2023,ZZH723564,1,8423,SMS Coaching Limited,261500,Human Resources Training & Conferences ,Fees and Charges,Services to People,SEN Independent Sch,"38,000.00",401024,10372
04/05/2023,ZZH723564,2,8423,SMS Coaching Limited,381600,Vehicle Management Hire/Leasing ,Leasing /Transport Hire,Services to People,SEN Trans-Home to Sc,"5,000.00",300302,10373
04/05/2023,ZZH723565,1,11021,The Laurus Trust (Cheadle Hulm,170000,Education  ,Third party payments - Public Sector,Services to People,OLA pupils,"7,814.00",500304,10371
05/05/2023,ZZH723602,1,15643,South Manchester Care,320000,Social Community Care Supplies & Services  ,Care Payments,Services to People,DP - Respite,"15,600.00",530335,11513
05/05/2023,ZZH723608,1,13109,4 Mental Health Ltd,999999,Social Community Care Supplies & Services  ,Service Contract Payments,Services to People,PH-Mental Wellbeing,"6,000.00",561704,12734
05/05/2023,ZZH723624,1,11958,PIPER HILL SCHOOL,170000,Education  ,Third party payments - Public Sector,Services to People,OLA pupils,"8,810.00",500304,10371
05/05/2023,ZZH723625,1,11958,PIPER HILL SCHOOL,170000,Education  ,Third party payments - Public Sector,Services to People,OLA pupils,"11,750.00",500304,10371
05/05/2023,ZZH723626,1,11958,PIPER HILL SCHOOL,170000,Education  ,Third party payments - Public Sector,Services to People,OLA pupils,"14,725.00",500304,10371
05/05/2023,ZZH723627,1,11958,PIPER HILL SCHOOL,170000,Education  ,Third party payments - Public Sector,Services to People,OLA pupils,"14,725.00",500304,10371
05/05/2023,ZZH723628,1,11958,PIPER HILL SCHOOL,170000,Education  ,Third party payments - Public Sector,Services to People,OLA pupils,"12,983.33",500304,10371
05/05/2023,ZZH723629,1,9456,Grange School,170000,Education  ,Third party payments - Public Sector,Services to People,OLA pupils,"10,255.42",500304,10371
09/05/2023,ZZH723648,1,12265,Lancasterian School,170000,Education  ,Third party payments - Public Sector,Services to People,OLA pupils,"9,965.00",500304,10371
09/05/2023,ZZH723649,1,12265,Lancasterian School,170000,Education  ,Third party payments - Public Sector,Services to People,OLA pupils,"9,965.00",500304,10371
09/05/2023,ZZH723650,1,12265,Lancasterian School,170000,Education  ,Third party payments - Public Sector,Services to People,OLA pupils,"17,620.00",500304,10371
09/05/2023,ZZH723651,1,12265,Lancasterian School,170000,Education  ,Third party payments - Public Sector,Services to People,OLA pupils,"49,128.00",500304,10371
09/05/2023,ZZH723664,1,8423,SMS Coaching Limited,261500,Human Resources Training & Conferences ,Fees and Charges,Services to People,SEN Independent Sch,"48,000.00",401024,10372
09/05/2023,ZZH723700,1,7083,E-ON,370000,Utilities   ,Utilities,Services to Place,St Peter's Square,"9,500.00",200510,11979
10/05/2023,ZZH723735,1,9906,SocialSignIn Ltd/Orlo,190000,Facilities & Management Services  ,Office Expenses,Corporate and Support Services,POD Communications,"12,250.00",400710,11323
10/05/2023,ZZH723769,1,14057,Atelier Rehab Ltd,181800,Environmental Services Technical Equipment ,Furniture and Equipment,Services to People,SEN Equipment,"6,262.00",400110,10324
10/05/2023,ZZH723775,1,8010,GROUNDWORK & LEISURE SERVIC,240000,Horticultural  ,Grounds Maintenance,#N/A,#N/A,"6,900.00",202032,C.00401
10/05/2023,ZZH723776,1,15251,Ground Inc limited,240000,Horticultural  ,Grounds Maintenance,#N/A,#N/A,"8,524.00",202032,C.00401
10/05/2023,ZZH723784,1,3529,Totally Local Company Ltd,999999,Fees and Charges,Fees and Charges,Services to Place,Operational Support,"61,925.25",402404,10924
10/05/2023,ZZH723798,1,4463,Reach Publishing Serv (MEN),390000,"Works - Construction, Repair & Maintenance  ",Capital Expenditure - Works,Services to Place,A6 Marr Maintenance,"5,000.00",200304,13039
11/05/2023,ZZH723807,1,423,Wigan MBC,170000,Education  ,Third party payments - Public Sector,Services to People,OLA pupils,"8,055.00",500304,10371
11/05/2023,ZZH723830,1,11466,High Peak School Ltd,261500,Human Resources Training & Conferences ,Fees and Charges,Services to People,SEN Independent Sch,"51,301.23",401024,10372
11/05/2023,ZZH723831,1,11466,High Peak School Ltd,261500,Human Resources Training & Conferences ,Fees and Charges,Services to People,SEN Independent Sch,"54,236.67",401024,10372
11/05/2023,ZZH723879,1,5535,Elementary Technology Ltd,181800,Environmental Services Technical Equipment ,Furniture and Equipment,Corporate and Support Services,Town Hall Events,"5,799.00",400110,11375
11/05/2023,ZZH723879,2,5535,Elementary Technology Ltd,181800,Environmental Services Technical Equipment ,Furniture and Equipment,Corporate and Support Services,Town Hall Events,"2,902.50",400110,11375
11/05/2023,ZZH723879,3,5535,Elementary Technology Ltd,181800,Environmental Services Technical Equipment ,Furniture and Equipment,Corporate and Support Services,Town Hall Events,"4,999.00",400110,11375
11/05/2023,ZZH723879,4,5535,Elementary Technology Ltd,181800,Environmental Services Technical Equipment ,Furniture and Equipment,Corporate and Support Services,Town Hall Events,509,400110,11375
11/05/2023,ZZH723879,5,5535,Elementary Technology Ltd,181800,Environmental Services Technical Equipment ,Furniture and Equipment,Corporate and Support Services,Town Hall Events,199,400110,11375
11/05/2023,ZZH723879,6,5535,Elementary Technology Ltd,181800,Environmental Services Technical Equipment ,Furniture and Equipment,Corporate and Support Services,Town Hall Events,143,400110,11375
11/05/2023,ZZH723879,7,5535,Elementary Technology Ltd,181800,Environmental Services Technical Equipment ,Furniture and Equipment,Corporate and Support Services,Town Hall Events,199,400110,11375
11/05/2023,ZZH723879,8,5535,Elementary Technology Ltd,181800,Environmental Services Technical Equipment ,Furniture and Equipment,Corporate and Support Services,Town Hall Events,243.92,400110,11375
11/05/2023,ZZH723879,9,5535,Elementary Technology Ltd,181800,Environmental Services Technical Equipment ,Furniture and Equipment,Corporate and Support Services,Town Hall Events,415,400110,11375
11/05/2023,ZZH723879,10,5535,Elementary Technology Ltd,181800,Environmental Services Technical Equipment ,Furniture and Equipment,Corporate and Support Services,Town Hall Events,602.11,400110,11375
11/05/2023,ZZH723879,11,5535,Elementary Technology Ltd,181800,Environmental Services Technical Equipment ,Furniture and Equipment,Corporate and Support Services,Town Hall Events,641.03,400110,11375
11/05/2023,ZZH723879,12,5535,Elementary Technology Ltd,181800,Environmental Services Technical Equipment ,Furniture and Equipment,Corporate and Support Services,Town Hall Events,370.5,400110,11375
11/05/2023,ZZH723879,13,5535,Elementary Technology Ltd,181800,Environmental Services Technical Equipment ,Furniture and Equipment,Corporate and Support Services,Town Hall Events,29.25,400110,11375
11/05/2023,ZZH723879,14,5535,Elementary Technology Ltd,181800,Environmental Services Technical Equipment ,Furniture and Equipment,Corporate and Support Services,Town Hall Events,192.92,400110,11375
11/05/2023,ZZH723879,15,5535,Elementary Technology Ltd,181800,Environmental Services Technical Equipment ,Furniture and Equipment,Corporate and Support Services,Town Hall Events,189,400110,11375
11/05/2023,ZZH723879,16,5535,Elementary Technology Ltd,181800,Environmental Services Technical Equipment ,Furniture and Equipment,Corporate and Support Services,Town Hall Events,36.28,400110,11375
11/05/2023,ZZH723879,17,5535,Elementary Technology Ltd,181800,Environmental Services Technical Equipment ,Furniture and Equipment,Corporate and Support Services,Town Hall Events,49,400110,11375
11/05/2023,ZZH723879,18,5535,Elementary Technology Ltd,181800,Environmental Services Technical Equipment ,Furniture and Equipment,Corporate and Support Services,Town Hall Events,49,400110,11375
11/05/2023,ZZH723879,19,5535,Elementary Technology Ltd,181800,Environmental Services Technical Equipment ,Furniture and Equipment,Corporate and Support Services,Town Hall Events,14,400110,11375
11/05/2023,ZZH723879,20,5535,Elementary Technology Ltd,181800,Environmental Services Technical Equipment ,Furniture and Equipment,Corporate and Support Services,Town Hall Events,279,400110,11375
11/05/2023,ZZH723879,21,5535,Elementary Technology Ltd,181800,Environmental Services Technical Equipment ,Furniture and Equipment,Corporate and Support Services,Town Hall Events,14.96,400110,11375
11/05/2023,ZZH723879,22,5535,Elementary Technology Ltd,181800,Environmental Services Technical Equipment ,Furniture and Equipment,Corporate and Support Services,Town Hall Events,125,400110,11375
11/05/2023,ZZH723879,23,5535,Elementary Technology Ltd,181800,Environmental Services Technical Equipment ,Furniture and Equipment,Corporate and Support Services,Town Hall Events,8.46,400110,11375
11/05/2023,ZZH723879,24,5535,Elementary Technology Ltd,181800,Environmental Services Technical Equipment ,Furniture and Equipment,Corporate and Support Services,Town Hall Events,13.4,400110,11375
11/05/2023,ZZH723879,25,5535,Elementary Technology Ltd,181800,Environmental Services Technical Equipment ,Furniture and Equipment,Corporate and Support Services,Town Hall Events,2.93,400110,11375
11/05/2023,ZZH723879,26,5535,Elementary Technology Ltd,181800,Environmental Services Technical Equipment ,Furniture and Equipment,Corporate and Support Services,Town Hall Events,11.05,400110,11375
11/05/2023,ZZH723879,27,5535,Elementary Technology Ltd,181800,Environmental Services Technical Equipment ,Furniture and Equipment,Corporate and Support Services,Town Hall Events,7.35,400110,11375
11/05/2023,ZZH723879,28,5535,Elementary Technology Ltd,181800,Environmental Services Technical Equipment ,Furniture and Equipment,Corporate and Support Services,Town Hall Events,12,400110,11375
11/05/2023,ZZH723879,29,5535,Elementary Technology Ltd,181800,Environmental Services Technical Equipment ,Furniture and Equipment,Corporate and Support Services,Town Hall Events,24.7,400110,11375
11/05/2023,ZZH723879,30,5535,Elementary Technology Ltd,181800,Environmental Services Technical Equipment ,Furniture and Equipment,Corporate and Support Services,Town Hall Events,4.06,400110,11375
11/05/2023,ZZH723879,31,5535,Elementary Technology Ltd,181800,Environmental Services Technical Equipment ,Furniture and Equipment,Corporate and Support Services,Town Hall Events,4.8,400110,11375
11/05/2023,ZZH723879,32,5535,Elementary Technology Ltd,181800,Environmental Services Technical Equipment ,Furniture and Equipment,Corporate and Support Services,Town Hall Events,6.23,400110,11375
11/05/2023,ZZH723879,33,5535,Elementary Technology Ltd,181800,Environmental Services Technical Equipment ,Furniture and Equipment,Corporate and Support Services,Town Hall Events,140,400110,11375
11/05/2023,ZZH723879,34,5535,Elementary Technology Ltd,181800,Environmental Services Technical Equipment ,Furniture and Equipment,Corporate and Support Services,Town Hall Events,99,400110,11375
11/05/2023,ZZH723879,35,5535,Elementary Technology Ltd,181800,Environmental Services Technical Equipment ,Furniture and Equipment,Corporate and Support Services,Town Hall Events,699,400110,11375
11/05/2023,ZZH723879,36,5535,Elementary Technology Ltd,181800,Environmental Services Technical Equipment ,Furniture and Equipment,Corporate and Support Services,Town Hall Events,38,400110,11375
11/05/2023,ZZH723879,37,5535,Elementary Technology Ltd,181800,Environmental Services Technical Equipment ,Furniture and Equipment,Corporate and Support Services,Town Hall Events,30,400110,11375
11/05/2023,ZZH723879,38,5535,Elementary Technology Ltd,181800,Environmental Services Technical Equipment ,Furniture and Equipment,Corporate and Support Services,Town Hall Events,30,400110,11375
11/05/2023,ZZH723879,39,5535,Elementary Technology Ltd,181800,Environmental Services Technical Equipment ,Furniture and Equipment,Corporate and Support Services,Town Hall Events,30,400110,11375
11/05/2023,ZZH723879,40,5535,Elementary Technology Ltd,181800,Environmental Services Technical Equipment ,Furniture and Equipment,Corporate and Support Services,Town Hall Events,249,400110,11375
11/05/2023,ZZH723879,41,5535,Elementary Technology Ltd,181800,Environmental Services Technical Equipment ,Furniture and Equipment,Corporate and Support Services,Town Hall Events,98,400110,11375
11/05/2023,ZZH723879,42,5535,Elementary Technology Ltd,181800,Environmental Services Technical Equipment ,Furniture and Equipment,Corporate and Support Services,Town Hall Events,299,400110,11375
11/05/2023,ZZH723879,43,5535,Elementary Technology Ltd,181800,Environmental Services Technical Equipment ,Furniture and Equipment,Corporate and Support Services,Town Hall Events,199,400110,11375
11/05/2023,ZZH723879,44,5535,Elementary Technology Ltd,181800,Environmental Services Technical Equipment ,Furniture and Equipment,Corporate and Support Services,Town Hall Events,"1,799.00",400110,11375
11/05/2023,ZZH723879,45,5535,Elementary Technology Ltd,181800,Environmental Services Technical Equipment ,Furniture and Equipment,Corporate and Support Services,Town Hall Events,599,400110,11375
11/05/2023,ZZH723891,1,3529,Totally Local Company Ltd,390000,"Works - Construction, Repair & Maintenance  ",Capital Expenditure - Works,#N/A,#N/A,"43,545.09",200304,C.01568.202
11/05/2023,ZZH723893,1,3529,Totally Local Company Ltd,230000,Highway Equipment & Materials�   ,Highways Maintenance,#N/A,#N/A,"12,729.81",202054,C.01568.202
12/05/2023,ZZH723922,1,3529,Totally Local Company Ltd,390000,Supplies and services,Supplies and services,Services to Place,Nature-Arboriculture,"11,640.00",401600,11281
12/05/2023,ZZH723927,1,2794,Show Racism the Red Card,260000,Human Resources  ,Staff Training,Services to People,SG - Child Prot-Safe,"6,120.00",102020,11425
12/05/2023,ZZH723940,1,11973,Virgin Media Ltd,230000,Highway Equipment & Materials�   ,Highways Maintenance,#N/A,#N/A,"6,287.83",202054,C.01568.202
12/05/2023,ZZH723975,1,3529,Totally Local Company Ltd,240000,Horticultural  ,Grounds Maintenance,Services to Place,Play,"14,691.25",202032,11267
14/05/2023,ZZH723991,1,6748,GEORGE COX & SONS LTD,390000,"Works - Construction, Repair & Maintenance  ",Capital Expenditure - Works,#N/A,#N/A,"847,151.45",200304,C.01568.203
15/05/2023,ZZH723994,1,3529,Totally Local Company Ltd,381600,Vehicle Management Hire/Leasing ,Leasing /Transport Hire,Services to People,SC - Dial Park,"10,593.00",300300,11447
15/05/2023,ZZH723994,2,3529,Totally Local Company Ltd,381600,Vehicle Management Hire/Leasing ,Leasing /Transport Hire,Services to People,SC - Dial Park,106,300300,11447
15/05/2023,ZZH723995,1,3529,Totally Local Company Ltd,381600,Vehicle Management Hire/Leasing ,Leasing /Transport Hire,Services to People,SC - Broadfield,"10,071.00",300300,11443
15/05/2023,ZZH723995,2,3529,Totally Local Company Ltd,381600,Vehicle Management Hire/Leasing ,Leasing /Transport Hire,Services to People,SC - Broadfield,106,300300,11443
15/05/2023,ZZH723996,1,3529,Totally Local Company Ltd,381600,Vehicle Management Hire/Leasing ,Leasing /Transport Hire,Services to People,Broadfields 16+ Unit,"9,768.00",300300,12977
15/05/2023,ZZH723996,2,3529,Totally Local Company Ltd,381600,Vehicle Management Hire/Leasing ,Leasing /Transport Hire,Services to People,Broadfields 16+ Unit,106,300300,12977
15/05/2023,ZZH724001,1,35,CBC Computer Systems Ltd,270000,Information Communication Technology  ,Information and Communications Technology,Services to People,SC - Care Matters,"5,990.00",402001,11768
15/05/2023,ZZH724005,1,5535,Elementary Technology Ltd,270000,Information Communication Technology  ,Information and Communications Technology,#N/A,#N/A,"5,550.00",402001,C.10423.184
15/05/2023,ZZH724005,2,5535,Elementary Technology Ltd,270000,Information Communication Technology  ,Information and Communications Technology,#N/A,#N/A,585,402001,C.10423.184
15/05/2023,ZZH724005,3,5535,Elementary Technology Ltd,270000,Information Communication Technology  ,Information and Communications Technology,#N/A,#N/A,375,402001,C.10423.184
15/05/2023,ZZH724005,4,5535,Elementary Technology Ltd,270000,Information Communication Technology  ,Information and Communications Technology,#N/A,#N/A,675,402001,C.10423.184
15/05/2023,ZZH724005,5,5535,Elementary Technology Ltd,270000,Information Communication Technology  ,Information and Communications Technology,#N/A,#N/A,255,402001,C.10423.184
15/05/2023,ZZH724005,6,5535,Elementary Technology Ltd,270000,Information Communication Technology  ,Information and Communications Technology,#N/A,#N/A,207,402001,C.10423.184
15/05/2023,ZZH724005,7,5535,Elementary Technology Ltd,270000,Information Communication Technology  ,Information and Communications Technology,#N/A,#N/A,120,402001,C.10423.184
15/05/2023,ZZH724040,1,2632,Concept Elevators NW Ltd,390000,"Works - Construction, Repair & Maintenance  ",Repairs and Maintenance,Services to People,Dis Svce:Domest Lift,"40,000.00",200125,11660
16/05/2023,ZZH724077,1,815,University of Manchester,260000,Human Resources  ,Staff Training,Services to Place,Property Client Acct,"6,200.00",102020,12328
16/05/2023,ZZH724079,1,13860,Howard Lynn Property Ltd,261400,Human Resources Temporary & Agency Staff ,Agency Staff,Services to Place,Property Client Acct,"5,681.21",100290,12328
16/05/2023,ZZH724081,1,14149,Smoothwall Ltd,270000,Information Communication Technology  ,Information and Communications Technology,Corporate and Support Services,IT Infrastructure,"19,990.00",402002,11324
16/05/2023,ZZH724082,1,1644,Tameside MBC,200000,Financial Services  ,Fees and Charges,Corporate and Support Services,IT Main,"7,960.00",402401,11073
16/05/2023,ZZH724084,1,12269,PENARTH GROUP,261500,Human Resources Training & Conferences ,Fees and Charges,Services to People,SEN Independent Sch,"68,000.00",401024,10372
16/05/2023,ZZH724085,1,1722,The Together Trust Centre,150000,Consultancy   ,Professional Fees,Services to People,SEN-Parent Partnersh,"90,000.00",401020,10316
16/05/2023,ZZH724090,1,757,Transport for Greater Manchest,270000,Information Communication Technology  ,Information and Communications Technology,Services to Place,Car Parks Admin,"32,181.57",402041,10005
16/05/2023,ZZH724111,1,1382,Pure Innovations Ltd,390000,Supplies and services,Supplies and services,Services to People,Pure Innovations,"180,000.00",401600,11071
16/05/2023,ZZH724149,1,7231,BEACON COUNSELLING,311410,Healthcare Occupational Therapy Services ,Fees and Charges,Corporate and Support Services,POD Occ. Health,"92,500.00",400706,11721
16/05/2023,ZZH724151,1,35,CBC Computer Systems Ltd,270000,Information Communication Technology  ,Information and Communications Technology,Corporate and Support Services,Members Services,"5,085.00",402001,11111
16/05/2023,ZZH724151,2,35,CBC Computer Systems Ltd,270000,Information Communication Technology  ,Information and Communications Technology,Corporate and Support Services,Members Services,479.25,402001,11111
16/05/2023,ZZH724151,3,35,CBC Computer Systems Ltd,270000,Information Communication Technology  ,Information and Communications Technology,Corporate and Support Services,Members Services,504,402001,11111
16/05/2023,ZZH724151,4,35,CBC Computer Systems Ltd,270000,Information Communication Technology  ,Information and Communications Technology,Corporate and Support Services,Members Services,126,402001,11111
16/05/2023,ZZH724151,5,35,CBC Computer Systems Ltd,270000,Information Communication Technology  ,Information and Communications Technology,Corporate and Support Services,Members Services,36,402001,11111
17/05/2023,ZZH724188,1,9406,Advice UK,261500,Human Resources Training & Conferences ,Fees and Charges,Corporate and Support Services,Benefit & Debt Advce,"7,380.00",401024,11322
17/05/2023,ZZH724194,1,4083,Hulme Hall School,261500,Human Resources Training & Conferences ,Fees and Charges,Services to People,SEN Specific support,"10,881.00",401024,10300
17/05/2023,ZZH724195,1,4083,Hulme Hall School,261500,Human Resources Training & Conferences ,Fees and Charges,Services to People,SEN Specific support,"8,055.00",401024,10300
17/05/2023,ZZH724199,1,4083,Hulme Hall School,261500,Human Resources Training & Conferences ,Fees and Charges,Services to People,SEN Specific support,"15,981.99",401024,10300
17/05/2023,ZZH724200,1,2816,The Fostering Network,150000,Consultancy   ,Professional Fees,Services to People,FP - Fostering Staff,"9,752.00",401020,11489
17/05/2023,ZZH724210,1,13596,STOCKPORT PROGRESS AND RECOVER,320000,Social Community Care Supplies & Services  ,Third party payments - Private/Voluntary Sector,Services to People,PH-Mental Wellbeing,"2,374.75",402403,12734
17/05/2023,ZZH724210,2,13596,STOCKPORT PROGRESS AND RECOVER,320000,Social Community Care Supplies & Services  ,Third party payments - Private/Voluntary Sector,Services to People,PH-Mental Wellbeing,"2,374.75",402403,12734
17/05/2023,ZZH724210,3,13596,STOCKPORT PROGRESS AND RECOVER,320000,Social Community Care Supplies & Services  ,Third party payments - Private/Voluntary Sector,Services to People,PH-Mental Wellbeing,"2,374.75",402403,12734
17/05/2023,ZZH724210,4,13596,STOCKPORT PROGRESS AND RECOVER,320000,Social Community Care Supplies & Services  ,Third party payments - Private/Voluntary Sector,Services to People,PH-Mental Wellbeing,"2,374.75",402403,12734
17/05/2023,ZZH724215,1,3529,Totally Local Company Ltd,130000,Cleaning & Janitorial  ,Cleaning,Services to People,EHP CC Reddish Vale,"10,040.06",201602,12294
17/05/2023,ZZH724218,1,12116,Physio.co.uk,311410,Healthcare Occupational Therapy Services ,Fees and Charges,Corporate and Support Services,POD Occ. Health,"30,000.00",400706,11721
17/05/2023,ZZH724219,1,3529,Totally Local Company Ltd,260000,Human Resources  ,Staff Training,Services to Place,Operational Support,"14,666.66",102020,10924
17/05/2023,ZZH724225,1,15082,Stockport Active CIC,320000,Social Community Care Supplies & Services  ,Third party payments - Private/Voluntary Sector,Services to Place,Sports Trust,"2,700,000.00",402403,11294
18/05/2023,ZZH724265,1,13041,YARAN NORTHWEST CIC,320000,Social Community Care Supplies & Services  ,Third party payments - Private/Voluntary Sector,Services to Place,Afghan Evacuee Costs,"36,000.00",500530,13149
18/05/2023,ZZH724278,1,10897,Three Sixty SHG Ltd,192200,Facilities & Management Services Security ,Security,Services to Place,Merseyway Shop Ctre,"18,394.82",201204,12866
18/05/2023,ZZH724278,2,10897,Three Sixty SHG Ltd,192200,Facilities & Management Services Security ,Security,Services to Place,Merseyway Shop Ctre,"127,754.41",201204,12866
18/05/2023,ZZH724293,1,10339,The Proud Trust,999999,Fees and Charges,Fees and Charges,Services to People,CYP PH Contracts,"9,652.00",402404,13034
18/05/2023,ZZH724294,1,1339,Stockport NHS Foundation Trust,261500,Human Resources Training & Conferences ,Fees and Charges,Services to People,CYP PH Contracts,"5,000.00",401024,13034
18/05/2023,ZZH724295,1,15694,NPS Energy Ltd,390000,"Works - Construction, Repair & Maintenance  ",Repairs and Maintenance,#N/A,#N/A,"237,967.00",200123,C.10398.186
18/05/2023,ZZH724296,1,15694,NPS Energy Ltd,390000,"Works - Construction, Repair & Maintenance  ",Repairs and Maintenance,#N/A,#N/A,"84,412.00",200123,C.10297.186
18/05/2023,ZZH724297,1,15694,NPS Energy Ltd,390000,"Works - Construction, Repair & Maintenance  ",Repairs and Maintenance,#N/A,#N/A,"74,648.00",200123,C.10331.186
18/05/2023,ZZH724298,1,15694,NPS Energy Ltd,390000,"Works - Construction, Repair & Maintenance  ",Repairs and Maintenance,#N/A,#N/A,"60,548.00",200123,C.10393.186
18/05/2023,ZZH724299,1,6748,GEORGE COX & SONS LTD,390000,"Works - Construction, Repair & Maintenance  ",Capital Expenditure - Works,#N/A,#N/A,"34,122.63",200304,C.10423.184
19/05/2023,ZZH724303,1,534,Kompan Ltd,240000,Horticultural  ,Grounds Maintenance,#N/A,#N/A,"19,808.88",202032,C.00401
19/05/2023,ZZH724306,1,8202,The Fountain Company Ltd,390000,"Works - Construction, Repair & Maintenance  ",Repairs and Maintenance,Services to Place,St Peter's Square,"15,000.00",200126,11979
19/05/2023,ZZH724322,1,13624,Charles Andrews Ltd,390000,"Works - Construction, Repair & Maintenance  ",Repairs and Maintenance,#N/A,#N/A,"9,950.00",200123,C.00405
22/05/2023,ZZH724341,1,4272,Civica UK Ltd,270000,Information Communication Technology  ,Information and Communications Technology,Corporate and Support Services,Bentax,"21,000.00",402001,11139
22/05/2023,ZZH724349,1,12269,PENARTH GROUP,261500,Human Resources Training & Conferences ,Fees and Charges,Services to People,SEN Independent Sch,"64,305.61",401024,10372
22/05/2023,ZZH724361,1,9149,Public-i,270000,Information Communication Technology  ,Information and Communications Technology,Services to Place,Town Hall Operations,"27,504.00",402010,11293
22/05/2023,ZZH724366,1,15248,Renaissance Ltd,390000,"Works - Construction, Repair & Maintenance  ",Repairs and Maintenance,#N/A,#N/A,"5,475.00",200123,C.11501.061
22/05/2023,ZZH724372,1,14414,MEADOWS CARE LTD,261500,Human Resources Training & Conferences ,Fees and Charges,Services to People,SEN Independent Sch,"51,740.00",401024,10372
22/05/2023,ZZH724373,1,14414,MEADOWS CARE LTD,261500,Human Resources Training & Conferences ,Fees and Charges,Services to People,SEN Independent Sch,"51,740.00",401024,10372
22/05/2023,ZZH724374,1,14414,MEADOWS CARE LTD,261500,Human Resources Training & Conferences ,Fees and Charges,Services to People,SEN Independent Sch,"51,740.00",401024,10372
22/05/2023,ZZH724377,1,13510,Children's Therapy Solutions,261500,Human Resources Training & Conferences ,Fees and Charges,Services to People,SEN Specific support,"5,000.00",401024,10300
22/05/2023,ZZH724378,1,14941,Green End Primary School,170000,Education  ,Third party payments - Public Sector,Services to People,OLA pupils,"7,814.00",500304,10371
23/05/2023,ZZH724426,1,6067,Pitchworks Ltd,240000,Horticultural  ,Grounds Maintenance,Services to Place,Play,"7,895.00",202032,11267
23/05/2023,ZZH724429,1,1342,UK Container Maintenance Ltd,182020,Environmental Services Waste Management,Waste Management Equipment,Services to Place,Bulk Container,"2,814.00",400401,10883
23/05/2023,ZZH724429,2,1342,UK Container Maintenance Ltd,182020,Environmental Services Waste Management,Waste Management Equipment,Services to Place,Bulk Container,"3,355.00",400401,10883
23/05/2023,ZZH724429,3,1342,UK Container Maintenance Ltd,182020,Environmental Services Waste Management,Waste Management Equipment,Services to Place,Bulk Container,201,400401,10883
23/05/2023,ZZH724465,1,14088,Oyster Partnership,261400,Human Resources Temporary & Agency Staff ,Agency Staff,Services to Place,Housing Standards,"10,000.00",100290,10956
23/05/2023,ZZH724466,1,6748,GEORGE COX & SONS LTD,150000,Consultancy   ,Professional Fees,#N/A,#N/A,"14,491.45",401007,C.01503.202
23/05/2023,ZZH724467,1,35,CBC Computer Systems Ltd,270000,Information Communication Technology  ,Information and Communications Technology,Services to People,YOS Staff,"7,140.00",402001,11504
23/05/2023,ZZH724467,2,35,CBC Computer Systems Ltd,270000,Information Communication Technology  ,Information and Communications Technology,Services to People,YOS Staff,"1,020.00",402001,11504
23/05/2023,ZZH724470,1,10384,Phillip Cleaton - Locksmith,150000,Consultancy   ,Professional Fees,Services to People,Domestic Abuse,"15,000.00",401020,12852
23/05/2023,ZZH724519,1,4579,Prospero Teaching,320000,Social Community Care Supplies & Services  ,Care Payments,Services to People,DP - Respite,"6,500.00",530358,11513
24/05/2023,ZZH724530,1,6170,Greater Manchester TreeStation,390000,Supplies and services,Supplies and services,Services to Place,Climate Change Now,"9,850.00",401600,13112
24/05/2023,ZZH724532,1,12630,J Freeley Ltd,390000,"Works - Construction, Repair & Maintenance  ",Repairs and Maintenance,#N/A,#N/A,"31,377.00",200123,C.00405
24/05/2023,ZZH724533,1,14619,Constellia Public Limited,390000,"Works - Construction, Repair & Maintenance  ",Repairs and Maintenance,#N/A,#N/A,"36,924.00",200123,13212
24/05/2023,ZZH724544,1,6748,GEORGE COX & SONS LTD,391114,"Works - Construction, Repair & Maintenance Buildings Surveys",Capital Expenditure - Fees,#N/A,#N/A,"11,513.01",200316,C.00403
24/05/2023,ZZH724560,1,9882,General Utilities Northwest,391114,"Works - Construction, Repair & Maintenance Buildings Surveys",Capital Expenditure - Fees,Services to Place,Property Client Acct,"6,925.00",200316,11137
24/05/2023,ZZH724569,1,15466,LinkedIn,260000,Human Resources  ,Staff Training,Corporate and Support Services,POD Core Staffing,"10,800.00",102020,12590
25/05/2023,ZZH724630,1,8018,STOCKPORT COUNTY COMMUNITY FOU,290000,Arts & Leisure Services  ,Publicity and Promotion,Services to People,GMCA CS Grant,"10,902.00",401801,11505
26/05/2023,ZZH724648,1,14669,Sapphire Utility Solutions Ltd,390000,"Works - Construction, Repair & Maintenance  ",Capital Expenditure - Works,#N/A,#N/A,"12,800.00",200304,C.01247.203
26/05/2023,ZZH724648,2,14669,Sapphire Utility Solutions Ltd,230000,Highway Equipment & Materials�   ,Highways Maintenance,Services to Place,Drainage Works,"10,000.00",202052,12681
26/05/2023,ZZH724650,1,12313,Locala Community Partnership,202000,Financial Services Rents ,Rents,Services to People,PH-Sexual Health,"397,338.58",200700,12736
26/05/2023,ZZH724665,1,3529,Totally Local Company Ltd,390000,"Works - Construction, Repair & Maintenance  ",Capital Expenditure - Works,#N/A,#N/A,"5,075.00",200304,C.01507.202
26/05/2023,ZZH724685,1,14509,Story Contracting Ltd,150000,Consultancy   ,Professional Fees,#N/A,#N/A,"58,283.87",401007,C.01503.202
29/05/2023,ZZH724731,1,8106,Tarmac Trading Ltd,390000,"Works - Construction, Repair & Maintenance  ",Capital Expenditure - Works,#N/A,#N/A,"138,717.61",200304,C.01568.203
30/05/2023,ZZH724743,1,4765,Astraline (TEC) Ltd,320000,Social Community Care Supplies & Services  ,Care Payments,Services to People,Extra Care Hsg Block,"7,900.92",530328,12219
30/05/2023,ZZH724744,1,15704,Pioneer House High School,170000,Education  ,Third party payments - Public Sector,Services to People,OLA pupils,"10,610.00",500304,10371
30/05/2023,ZZH724745,1,15704,Pioneer House High School,170000,Education  ,Third party payments - Public Sector,Services to People,OLA pupils,"10,610.00",500304,10371
30/05/2023,ZZH724753,1,11021,The Laurus Trust (Cheadle Hulm,150000,Consultancy   ,Professional Fees,Services to People,T.Union facilities,"33,265.00",401020,10472
30/05/2023,ZZH724761,1,11021,The Laurus Trust (Cheadle Hulm,150000,Consultancy   ,Professional Fees,Services to People,T.Union facilities,"52,926.00",401020,10472
30/05/2023,ZZH724770,1,14190,DV BGS Utilities,390000,"Works - Construction, Repair & Maintenance  ",Repairs and Maintenance,#N/A,#N/A,"37,086.86",200123,C.10904
31/05/2023,ZZH724809,1,14669,Sapphire Utility Solutions Ltd,391114,"Works - Construction, Repair & Maintenance Buildings Surveys",Capital Expenditure - Fees,#N/A,#N/A,"9,050.75",200316,C.01606.202
31/05/2023,ZZH724813,1,14509,Story Contracting Ltd,150000,Consultancy   ,Professional Fees,#N/A,#N/A,"58,283.87",401007,C.01503.202
31/05/2023,ZZH724814,1,14669,Sapphire Utility Solutions Ltd,391114,"Works - Construction, Repair & Maintenance Buildings Surveys",Capital Expenditure - Fees,#N/A,#N/A,"9,050.75",200316,C.01605.202
31/05/2023,ZZH724841,1,815,University of Manchester,261500,Human Resources Training & Conferences ,Fees and Charges,Services to People,SEN Incl - Psycholog,"39,920.00",401024,10751
31/05/2023,ZZH724841,2,815,University of Manchester,261500,Human Resources Training & Conferences ,Fees and Charges,Services to People,SEN Incl - Psycholog,250,401024,10751
31/05/2023,ZZH724841,3,815,University of Manchester,261500,Human Resources Training & Conferences ,Fees and Charges,Services to People,SEN Incl - Psycholog,"10,811.66",401024,10751
31/05/2023,ZZH724842,1,14374,Capital & Centric Rose Limited,390000,"Works - Construction, Repair & Maintenance  ",Repairs and Maintenance,#N/A,#N/A,"294,000.00",200123,C.10933
01/06/2023,ZZH724895,1,1427,Stagecoach Services Ltd,181800,Environmental Services Technical Equipment ,Furniture and Equipment,Corporate and Support Services,POD Core Staffing,"9,000.00",400110,12590
01/06/2023,ZZH724920,1,1816,Seashell Trust,150000,Consultancy   ,Professional Fees,Services to People,PH-Physical Activity,"15,000.00",401020,12834
02/06/2023,ZZH724926,1,8649,B4Box Ltd,390000,"Works - Construction, Repair & Maintenance  ",Repairs and Maintenance,Services to Place,Default Works-Domest,"7,765.32",200123,10957
02/06/2023,ZZH724934,1,6748,GEORGE COX & SONS LTD,390000,Supplies and services,Supplies and services,#N/A,#N/A,"13,705.65",401600,C.00403
02/06/2023,ZZH724941,1,15643,South Manchester Care,320000,Social Community Care Supplies & Services  ,Care Payments,Services to People,DP - Respite,"7,800.00",530335,11513
02/06/2023,ZZH724944,1,13080,Skybound Therapies,320000,Social Community Care Supplies & Services  ,Care Payments,Services to People,LD Care Purchasing,"13,028.00",530328,11837
02/06/2023,ZZH724958,1,15717,J&C Joel Limited,181800,Environmental Services Technical Equipment ,Furniture and Equipment,Corporate and Support Services,Town Hall Events,"17,633.88",400110,11375
02/06/2023,ZZH724961,1,421,Bond Solon Training Ltd,261500,Human Resources Training & Conferences ,Fees and Charges,Services to People,Safeguarding Adults,"12,400.00",401024,12424
02/06/2023,ZZH724975,1,14236,Coram Voice,261500,Human Resources Training & Conferences ,Fees and Charges,Services to People,CHILDREN PARTCPTN. T,"29,332.86",401024,11498
05/06/2023,ZZH724980,1,14262,Depaul UK,260000,Human Resources  ,Staff Training,Services to People,Staying Close,"293,212.00",102020,13191
05/06/2023,ZZH724981,1,14262,Depaul UK,320000,Social Community Care Supplies & Services  ,Care Payments,Services to People,SC - Leaving Care,"168,000.00",530330,11501
05/06/2023,ZZH724982,1,10337,SIGNPOST STOCKPORT for CARERS,320000,Social Community Care Supplies & Services  ,Third party payments - Private/Voluntary Sector,Services to People,SC - Signpost,"167,761.00",500530,11419
05/06/2023,ZZH724986,1,3529,Totally Local Company Ltd,999999,Fees and Charges,Fees and Charges,Services to Place,Operational Support,"35,000.00",402404,10924
05/06/2023,ZZH724999,1,10897,Three Sixty SHG Ltd,390000,"Works - Construction, Repair & Maintenance  ",Repairs and Maintenance,#N/A,#N/A,"6,217.09",200123,C.11502.145
05/06/2023,ZZH725009,1,11183,City Car Club t/a Enterprise C,381600,Vehicle Management Hire/Leasing ,Leasing /Transport Hire,Corporate and Support Services,POD - Car Pool Club,"15,000.00",300301,12959
05/06/2023,ZZH725009,2,11183,City Car Club t/a Enterprise C,381600,Vehicle Management Hire/Leasing ,Leasing /Transport Hire,Corporate and Support Services,POD - Car Pool Club,"1,400.00",300301,12959
06/06/2023,ZZH725035,1,7025,CBRE Limited,150000,Consultancy   ,Professional Fees,Services to Place,Merseyway Shop Ctre,"37,500.00",401020,12866
06/06/2023,ZZH725035,2,7025,CBRE Limited,150000,Consultancy   ,Professional Fees,Services to Place,Merseyway Shop Ctre,"6,320.00",401020,12866
06/06/2023,ZZH725047,1,15708,Bailey Street Furniture Group,240000,Horticultural  ,Grounds Maintenance,#N/A,#N/A,"5,754.00",202032,C.00401
06/06/2023,ZZH725049,1,15602,Blakedown Sport & Play Limited,240000,Horticultural  ,Grounds Maintenance,#N/A,#N/A,"33,193.28",202032,C.00401
06/06/2023,ZZH725067,1,757,Transport for Greater Manchest,230000,Highway Equipment & Materials�   ,Highways Maintenance,#N/A,#N/A,"5,150.00",202054,C.01605.202
06/06/2023,ZZH725068,1,757,Transport for Greater Manchest,230000,Highway Equipment & Materials�   ,Highways Maintenance,#N/A,#N/A,"5,950.00",202054,C.01606.202
06/06/2023,ZZH725069,1,757,Transport for Greater Manchest,230000,Highway Equipment & Materials�   ,Highways Maintenance,#N/A,#N/A,"5,950.00",202054,C.01607.202
06/06/2023,ZZH725073,1,14464,Ekosgen [EKOS Consulting (UK),150000,Consultancy   ,Professional Fees,Services to Place,Town Centre Devt Tea,"5,703.75",401020,10072
06/06/2023,ZZH725078,1,15710,Sale Grammar School,170000,Education  ,Third party payments - Public Sector,Services to People,OLA pupils,"11,984.00",500304,10371
06/06/2023,ZZH725082,1,15736,Cringle Brook Primary School,170000,Education  ,Third party payments - Public Sector,Services to People,OLA pupils,"13,023.34",500304,10371
07/06/2023,ZZH725089,1,18,AKW Medi Care Ltd,181800,Environmental Services Technical Equipment ,Furniture and Equipment,Services to People,Minor Adap'S Joiner,"2,043.00",400110,11016
07/06/2023,ZZH725089,2,18,AKW Medi Care Ltd,181800,Environmental Services Technical Equipment ,Furniture and Equipment,Services to People,Minor Adap'S Joiner,"1,180.00",400110,11016
07/06/2023,ZZH725089,3,18,AKW Medi Care Ltd,181800,Environmental Services Technical Equipment ,Furniture and Equipment,Services to People,Minor Adap'S Joiner,541.8,400110,11016
07/06/2023,ZZH725089,4,18,AKW Medi Care Ltd,181800,Environmental Services Technical Equipment ,Furniture and Equipment,Services to People,Minor Adap'S Joiner,224.7,400110,11016
07/06/2023,ZZH725089,5,18,AKW Medi Care Ltd,181800,Environmental Services Technical Equipment ,Furniture and Equipment,Services to People,Minor Adap'S Joiner,172.5,400110,11016
07/06/2023,ZZH725089,6,18,AKW Medi Care Ltd,181800,Environmental Services Technical Equipment ,Furniture and Equipment,Services to People,Minor Adap'S Joiner,172.5,400110,11016
07/06/2023,ZZH725089,7,18,AKW Medi Care Ltd,181800,Environmental Services Technical Equipment ,Furniture and Equipment,Services to People,Minor Adap'S Joiner,"1,124.00",400110,11016
07/06/2023,ZZH725098,1,2109,Rochdale MBC,999999,Third party payments - Public Sector,Third party payments - Public Sector,Services to People,Regional Imp Allianc,"7,200.00",500303,13031
07/06/2023,ZZH725114,1,10019,Access UK Ltd,270000,Information Communication Technology  ,Information and Communications Technology,Corporate and Support Services,I.T Business Relat,"62,274.15",402001,13044
07/06/2023,ZZH725115,1,15098,Coverdale Barclay,150000,Consultancy   ,Professional Fees,Services to Place,MDC Mayoral Dev Co,"39,912.00",401007,13198
08/06/2023,ZZH725157,1,2039,Stockport Womens Centre,390000,Supplies and services,Supplies and services,Corporate and Support Services,BS Apprentices,"31,159.00",401600,13011
08/06/2023,ZZH725191,1,3707,Salford City Council/Finance,999999,Third party payments - Public Sector,Third party payments - Public Sector,Services to People,Regional Imp Allianc,"7,200.00",500303,13031
08/06/2023,ZZH725201,1,8233,IPL Plastics Ltd,182020,Environmental Services Waste Management,Waste Management Equipment,Services to Place,Wheelie Bins,"15,456.00",400401,10864
08/06/2023,ZZH725213,1,15456,Mind of my Own,999999,Fees and Charges,Fees and Charges,Services to People,GMCA CS Grant,"9,133.00",402404,11505
08/06/2023,ZZH725214,1,13451,HM Prison and Probation Servic,320000,Social Community Care Supplies & Services  ,Care Payments,Services to People,YJB Remand Grant,"26,550.00",530325,11487
08/06/2023,ZZH725227,1,15254,PIE: Pursuing Individual Excel,320000,Social Community Care Supplies & Services  ,Third party payments - Private/Voluntary Sector,Corporate and Support Services,Com. Invest Fund,"5,025.00",402403,12979
08/06/2023,ZZH725227,2,15254,PIE: Pursuing Individual Excel,320000,Social Community Care Supplies & Services  ,Third party payments - Private/Voluntary Sector,Corporate and Support Services,Com. Invest Fund,"6,025.00",402403,12979
08/06/2023,ZZH725227,3,15254,PIE: Pursuing Individual Excel,320000,Social Community Care Supplies & Services  ,Third party payments - Private/Voluntary Sector,Corporate and Support Services,Com. Invest Fund,"5,025.00",402403,12979
08/06/2023,ZZH725227,4,15254,PIE: Pursuing Individual Excel,320000,Social Community Care Supplies & Services  ,Third party payments - Private/Voluntary Sector,Corporate and Support Services,Com. Invest Fund,"6,025.00",402403,12979
09/06/2023,ZZH725232,1,1669,Charnwood Nursery,321115,Social Community Care Supplies & Services Children Childcare Services,Expenses and Allowances,Services to People,Early Years SEN,0,402210,12942
09/06/2023,ZZH725232,1,1669,Charnwood Nursery,321115,Social Community Care Supplies & Services Children Childcare Services,Expenses and Allowances,Services to People,Early Years SEN,"42,480.00",402210,12942
09/06/2023,ZZH725232,1,1669,Charnwood Nursery,261500,Human Resources Training & Conferences ,Fees and Charges,Services to People,SEN Independent Sch,"311,520.00",401024,10372
09/06/2023,ZZH725239,1,11807,Aidan Gaunt Funeral Director,120000,Cemetery & Crematorium   ,Fees and Charges,Services to Place,Welfare Funerals,"15,000.00",401200,13017
09/06/2023,ZZH725251,1,1669,Charnwood Nursery,261500,Human Resources Training & Conferences ,Fees and Charges,Services to People,SEN Independent Sch,"6,543.86",401024,10372
09/06/2023,ZZH725264,1,9633,Ebony & Ivory Community Organi,320000,Social Community Care Supplies & Services  ,Third party payments - Private/Voluntary Sector,Services to People,H'sehold S'port Fund,"5,000.00",402403,13154
09/06/2023,ZZH725264,2,9633,Ebony & Ivory Community Organi,320000,Social Community Care Supplies & Services  ,Third party payments - Private/Voluntary Sector,Services to People,H'sehold S'port Fund,500,402403,13154
09/06/2023,ZZH725265,1,14399,The Cherry Tree Project,320000,Social Community Care Supplies & Services  ,Third party payments - Private/Voluntary Sector,Services to People,H'sehold S'port Fund,"12,500.00",402403,13154
09/06/2023,ZZH725265,2,14399,The Cherry Tree Project,320000,Social Community Care Supplies & Services  ,Third party payments - Private/Voluntary Sector,Services to People,H'sehold S'port Fund,"1,250.00",402403,13154
09/06/2023,ZZH725266,1,9316,THE WELLSPRING (STOCKPO,320000,Social Community Care Supplies & Services  ,Third party payments - Private/Voluntary Sector,Services to People,H'sehold S'port Fund,"5,000.00",402403,13154
09/06/2023,ZZH725266,2,9316,THE WELLSPRING (STOCKPO,320000,Social Community Care Supplies & Services  ,Third party payments - Private/Voluntary Sector,Services to People,H'sehold S'port Fund,500,402403,13154
09/06/2023,ZZH725267,1,8990,Chelwood Foodbank,320000,Social Community Care Supplies & Services  ,Third party payments - Private/Voluntary Sector,Services to People,H'sehold S'port Fund,"12,500.00",402403,13154
09/06/2023,ZZH725267,2,8990,Chelwood Foodbank,320000,Social Community Care Supplies & Services  ,Third party payments - Private/Voluntary Sector,Services to People,H'sehold S'port Fund,"1,250.00",402403,13154
12/06/2023,ZZH725275,1,5131,FUTURE DESIGN CONSULTANTS,150000,Consultancy   ,Professional Fees,Corporate and Support Services,One Stockport,"9,868.20",401007,13186
12/06/2023,ZZH725312,1,8106,Tarmac Trading Ltd,390000,"Works - Construction, Repair & Maintenance  ",Capital Expenditure - Works,#N/A,#N/A,"138,717.61",200304,C.01568.203
12/06/2023,ZZH725326,1,13430,Team Teach Ltd,261500,Human Resources Training & Conferences ,Fees and Charges,Services to People,LSS Management,"6,170.42",401024,10310
13/06/2023,ZZH725366,1,12180,Acorn Care and Education,261500,Human Resources Training & Conferences ,Fees and Charges,Services to People,SEN Independent Sch,"59,750.00",401024,10372
13/06/2023,ZZH725381,1,5131,FUTURE DESIGN CONSULTANTS,190000,Facilities & Management Services  ,Publicity and Promotion,Services to People,Family Hubs,"3,720.00",401804,13188
13/06/2023,ZZH725381,2,5131,FUTURE DESIGN CONSULTANTS,190000,Facilities & Management Services  ,Publicity and Promotion,Services to People,Family Hubs,"3,600.00",401804,13188
13/06/2023,ZZH725381,3,5131,FUTURE DESIGN CONSULTANTS,190000,Facilities & Management Services  ,Publicity and Promotion,Services to People,Family Hubs,"1,600.00",401804,13188
13/06/2023,ZZH725397,1,5292,NPOWER (Electricity),290000,Arts & Leisure Services  ,Publicity and Promotion,Services to Place,Borough Festive Ligh,"5,110.78",401801,12654
13/06/2023,ZZH725408,1,15278,NAS Academies Trust Church Law,170000,Education  ,Third party payments - Public Sector,Services to People,OLA pupils,"31,037.00",500304,10371
13/06/2023,ZZH725411,1,14476,One School Global,261500,Human Resources Training & Conferences ,Fees and Charges,Services to People,SEN Specific support,"6,487.00",401024,10300
13/06/2023,ZZH725412,1,14476,One School Global,170000,Education  ,Third party payments - Public Sector,Services to People,OLA pupils,"20,654.25",500304,10371
13/06/2023,ZZH725413,1,11585,Trinity Christian School,261500,Human Resources Training & Conferences ,Fees and Charges,Services to People,SEN Specific support,"6,054.30",401024,10300
13/06/2023,ZZH725417,1,11962,PROQUEST INFORMATION & LEARNIN,171113,Education Library Books ,Library Equipment,Corporate and Support Services,Library Dev & Res,"7,102.73",400202,11328
13/06/2023,ZZH725418,1,11539,Bolinda UK Limited,171113,Education Library Books ,Library Equipment,Corporate and Support Services,Library Dev & Res,"1,500.00",400202,11328
13/06/2023,ZZH725418,2,11539,Bolinda UK Limited,171113,Education Library Books ,Library Equipment,Corporate and Support Services,Library Dev & Res,"4,000.00",400202,11328
14/06/2023,ZZH725444,1,14682,SME HCI Ltd (trading as Vivup),181800,Environmental Services Technical Equipment ,Furniture and Equipment,Corporate and Support Services,POD Core Staffing,"265,000.00",400110,12590
14/06/2023,ZZH725445,1,3529,Totally Local Company Ltd,210000,Furniture & Soft Furnishings  ,Furniture and Equipment,Services to Place,Sport Events & Proje,"7,308.17",400115,13170
14/06/2023,ZZH725466,1,6748,GEORGE COX & SONS LTD,390000,"Works - Construction, Repair & Maintenance  ",Capital Expenditure - Works,#N/A,#N/A,"9,912.23",200304,C.10423.184
14/06/2023,ZZH725467,1,14325,Ivanti UK Limited,270000,Information Communication Technology  ,Information and Communications Technology,Corporate and Support Services,IT Infrastructure,"8,556.30",402002,11324
14/06/2023,ZZH725467,2,14325,Ivanti UK Limited,270000,Information Communication Technology  ,Information and Communications Technology,Corporate and Support Services,IT Infrastructure,"4,753.50",402002,11324
15/06/2023,ZZH725494,1,7025,CBRE Limited,390000,"Works - Construction, Repair & Maintenance  ",Repairs and Maintenance,#N/A,#N/A,"31,400.00",200123,C.11043
15/06/2023,ZZH725506,1,6748,GEORGE COX & SONS LTD,390000,Supplies and services,Supplies and services,#N/A,#N/A,"7,895.04",401600,C.01601.201
15/06/2023,ZZH725507,1,6748,GEORGE COX & SONS LTD,390000,Supplies and services,Supplies and services,#N/A,#N/A,"17,731.84",401600,C.01603.201
15/06/2023,ZZH725522,1,12352,NJL Consulting Limited,150000,Consultancy   ,Professional Fees,Services to Place,MDC Mayoral DC,"8,750.00",401007,13033
15/06/2023,ZZH725525,1,11585,Trinity Christian School,261500,Human Resources Training & Conferences ,Fees and Charges,Services to People,SEN Specific support,"6,054.30",401024,10300
15/06/2023,ZZH725526,1,7782,Landscape Engineering Ltd,240000,Horticultural  ,Grounds Maintenance,Services to Place,Play,"14,177.72",202032,11267
15/06/2023,ZZH725543,1,15576,Thomson Broadbent Limited,390000,"Works - Construction, Repair & Maintenance  ",Repairs and Maintenance,#N/A,#N/A,"18,226.00",200123,C.00466.203
15/06/2023,ZZH725544,1,757,Transport for Greater Manchest,181800,Environmental Services Technical Equipment ,Furniture and Equipment,#N/A,#N/A,"59,688.00",400110,C.01632.201
15/06/2023,ZZH725545,1,5214,WSP GROUP PLC,150000,Consultancy   ,Professional Fees,#N/A,#N/A,"14,181.00",401007,C.01569.201
15/06/2023,ZZH725546,1,5214,WSP GROUP PLC,150000,Consultancy   ,Professional Fees,#N/A,#N/A,"17,276.50",401007,C.01569.201
16/06/2023,ZZH725550,1,8233,IPL Plastics Ltd,182020,Environmental Services Waste Management,Waste Management Equipment,Services to Place,Wheelie Bins,"14,304.00",400401,10864
16/06/2023,ZZH725594,1,12193,Greater Manchester Combined Au,999999,Fees and Charges,Fees and Charges,#N/A,#N/A,"52,000.00",402404,13162
19/06/2023,ZZH725608,1,12400,Michael Page International Rec,150000,Consultancy   ,Professional Fees,Services to Place,Town Centre Devt Tea,"30,000.00",401007,10072
19/06/2023,ZZH725629,1,15213,Stopford Information Systems L,270000,Information Communication Technology  ,Information and Communications Technology,Corporate and Support Services,"Registrars B, D & M","2,400.00",402001,11295
19/06/2023,ZZH725629,2,15213,Stopford Information Systems L,270000,Information Communication Technology  ,Information and Communications Technology,Corporate and Support Services,"Registrars B, D & M","5,880.00",402001,11295
19/06/2023,ZZH725680,1,15008,IDHL Technology Limited,190000,Facilities & Management Services  ,Office Expenses,Corporate and Support Services,POD Communications,"15,187.88",400710,11323
19/06/2023,ZZH725684,1,14227,Gowling WLG (UK) LLP,280000,Legal Services  ,Legal Fees,Corporate and Support Services,Legal Fees Budget,"5,000.00",401016,12271
19/06/2023,ZZH725686,1,13974,ADDLESHAW GODDARD,280000,Legal Services  ,Legal Fees,#N/A,#N/A,"34,510.95",401016,C.10976.009
19/06/2023,ZZH725693,1,15643,South Manchester Care,320000,Social Community Care Supplies & Services  ,Care Payments,Services to People,DP - Respite,"5,200.00",530358,11513
19/06/2023,ZZH725694,1,15643,South Manchester Care,320000,Social Community Care Supplies & Services  ,Care Payments,Services to People,DP - Respite,"7,800.00",530335,11513
19/06/2023,ZZH725695,1,15643,South Manchester Care,320000,Social Community Care Supplies & Services  ,Care Payments,Services to People,DP - Respite,"7,800.00",530335,11513
20/06/2023,ZZH725720,1,14984,PS Recruitment Specialists,320000,Social Community Care Supplies & Services  ,Care Payments,Services to People,H&R Client Spend,"9,060.21",530351,13143
20/06/2023,ZZH725742,1,15643,South Manchester Care,320000,Social Community Care Supplies & Services  ,Care Payments,Services to People,DP - Respite,"10,400.00",530335,11513
20/06/2023,ZZH725746,1,8186,Dunelm Ecology,150000,Consultancy   ,Professional Fees,Services to Place,Local Plan Project,"10,837.50",401007,12936
20/06/2023,ZZH725750,1,9882,General Utilities Northwest,390000,Supplies and services,Supplies and services,Services to Place,Struct Consult,"5,280.00",401600,13059
21/06/2023,ZZH725777,1,3529,Totally Local Company Ltd,390000,Supplies and services,Supplies and services,#N/A,#N/A,"7,462.13",401600,C.01552.203
21/06/2023,ZZH725793,1,15251,Ground Inc limited,240000,Horticultural  ,Grounds Maintenance,Services to Place,Play,"5,210.00",202032,11267
21/06/2023,ZZH725806,1,4132,Stockport Grammar Junior Schoo,261500,Human Resources Training & Conferences ,Fees and Charges,Services to People,SEN Specific support,"18,200.00",401024,10300
21/06/2023,ZZH725807,1,14677,Melland High School BFET,170000,Education  ,Third party payments - Public Sector,Services to People,OLA pupils,"9,300.00",500304,10371
21/06/2023,ZZH725830,1,15297,Action First Assessments Ltd,999999,Fees and Charges,Fees and Charges,Services to People,Safeguarding Adults,"93,000.00",401035,12424
21/06/2023,ZZH725831,1,8806,Manchester City Council Int,999999,Third party payments - Public Sector,Third party payments - Public Sector,#N/A,#N/A,"32,282.61",500303,13190
21/06/2023,ZZH725832,1,7183,BLACKBURN WITH DARWEN,999999,Third party payments - Public Sector,Third party payments - Public Sector,#N/A,#N/A,"26,413.04",500303,13190
21/06/2023,ZZH725834,1,3771,Warrington MBC,999999,Third party payments - Public Sector,Third party payments - Public Sector,#N/A,#N/A,"31,304.35",500303,13190
21/06/2023,ZZH725841,1,757,Transport for Greater Manchest,391114,"Works - Construction, Repair & Maintenance Buildings Surveys",Capital Expenditure - Fees,#N/A,#N/A,"17,800.00",200316,C.01589.201
21/06/2023,ZZH725847,1,6748,GEORGE COX & SONS LTD,390000,Supplies and services,Supplies and services,#N/A,#N/A,"119,003.23",401600,C.10304.164
21/06/2023,ZZH725886,1,15227,XYLA Health & Social Services,999999,Fees and Charges,Fees and Charges,Services to People,Safeguarding Adults,"127,500.00",401035,12424
22/06/2023,ZZH725928,1,6748,GEORGE COX & SONS LTD,391114,"Works - Construction, Repair & Maintenance Buildings Surveys",Capital Expenditure - Fees,#N/A,#N/A,"12,603.24",200316,C.01583.202
22/06/2023,ZZH725933,1,15648,Toolebox Films Limited,260000,Human Resources  ,Staff Training,Corporate and Support Services,POD Core Staffing,"5,280.00",102020,12590
22/06/2023,ZZH725934,1,15508,Nicki Pettitt Ltd,150000,Consultancy   ,Professional Fees,Services to People,SG - Child Prot-Lscb,"5,455.80",401020,11424
22/06/2023,ZZH725935,1,15102,Westwood Homecare Ltd (NW),320000,Social Community Care Supplies & Services  ,Care Payments,Services to People,DP - Respite,"7,560.00",530335,11513
22/06/2023,ZZH725937,1,7030,MANCHESTER CITY COUNCIL SHARED,190000,Facilities & Management Services  ,Publicity and Promotion,Corporate and Support Services,Local Election,"10,185.63",401803,12102
22/06/2023,ZZH725942,1,12384,Synergy Stockport,320000,Social Community Care Supplies & Services  ,Third party payments - Private/Voluntary Sector,Services to People,Family Hubs,"34,439.55",402403,13188
22/06/2023,ZZH725942,2,12384,Synergy Stockport,320000,Social Community Care Supplies & Services  ,Third party payments - Private/Voluntary Sector,Services to People,Family Hubs,"17,219.77",402403,13188
23/06/2023,ZZH725949,1,14669,Sapphire Utility Solutions Ltd,391114,"Works - Construction, Repair & Maintenance Buildings Surveys",Capital Expenditure - Fees,#N/A,#N/A,"15,054.58",200316,C.01607.202
23/06/2023,ZZH725952,1,5131,FUTURE DESIGN CONSULTANTS,190000,Facilities & Management Services  ,Publicity and Promotion,#N/A,#N/A,"4,320.00",401803,13213
23/06/2023,ZZH725952,2,5131,FUTURE DESIGN CONSULTANTS,190000,Facilities & Management Services  ,Publicity and Promotion,#N/A,#N/A,960,401803,13213
23/06/2023,ZZH725954,1,10716,Pure Insight 1628 Ltd,150000,Consultancy   ,Professional Fees,Services to People,SC - Leaving Care,"47,900.00",401020,11501
23/06/2023,ZZH725955,1,10716,Pure Insight 1628 Ltd,150000,Consultancy   ,Professional Fees,Services to People,SC - Leaving Care,"27,997.00",401020,11501
23/06/2023,ZZH725963,1,1342,UK Container Maintenance Ltd,182020,Environmental Services Waste Management,Waste Management Equipment,Services to Place,Bulk Container,"3,064.00",400401,10883
23/06/2023,ZZH725963,2,1342,UK Container Maintenance Ltd,182020,Environmental Services Waste Management,Waste Management Equipment,Services to Place,Bulk Container,"2,095.00",400401,10883
23/06/2023,ZZH725963,3,1342,UK Container Maintenance Ltd,182020,Environmental Services Waste Management,Waste Management Equipment,Services to Place,Bulk Container,957.5,400401,10883
23/06/2023,ZZH725963,4,1342,UK Container Maintenance Ltd,182020,Environmental Services Waste Management,Waste Management Equipment,Services to Place,Bulk Container,134,400401,10883
23/06/2023,ZZH725985,1,11280,The Key Support Services Limit,270000,Information Communication Technology  ,Information and Communications Technology,Services to People,SI - School Govern,"12,540.00",402010,10755
25/06/2023,ZZH726023,1,6967,Wilde Consultants Ltd,390000,Supplies and services,Supplies and services,Services to Place,Network Assets Staff,"68,272.00",401600,11959
25/06/2023,ZZH726025,1,6967,Wilde Consultants Ltd,390000,Supplies and services,Supplies and services,Services to Place,Network Assets Staff,"42,670.00",401600,11959
26/06/2023,ZZH726044,1,15125,Keira's Kingdom,320000,Social Community Care Supplies & Services  ,Third party payments - Private/Voluntary Sector,Corporate and Support Services,Com. Invest Fund,"1,250.00",402403,12979
26/06/2023,ZZH726044,2,15125,Keira's Kingdom,320000,Social Community Care Supplies & Services  ,Third party payments - Private/Voluntary Sector,Corporate and Support Services,Com. Invest Fund,"1,250.00",402403,12979
26/06/2023,ZZH726044,3,15125,Keira's Kingdom,320000,Social Community Care Supplies & Services  ,Third party payments - Private/Voluntary Sector,Corporate and Support Services,Com. Invest Fund,"1,250.00",402403,12979
26/06/2023,ZZH726044,4,15125,Keira's Kingdom,320000,Social Community Care Supplies & Services  ,Third party payments - Private/Voluntary Sector,Corporate and Support Services,Com. Invest Fund,"1,250.00",402403,12979
26/06/2023,ZZH726044,5,15125,Keira's Kingdom,320000,Social Community Care Supplies & Services  ,Third party payments - Private/Voluntary Sector,Corporate and Support Services,Com. Invest Fund,900,402403,12979
26/06/2023,ZZH726044,6,15125,Keira's Kingdom,320000,Social Community Care Supplies & Services  ,Third party payments - Private/Voluntary Sector,Corporate and Support Services,Com. Invest Fund,"1,000.00",402403,12979
26/06/2023,ZZH726045,1,15125,Keira's Kingdom,320000,Social Community Care Supplies & Services  ,Third party payments - Private/Voluntary Sector,Corporate and Support Services,Com. Invest Fund,"1,750.00",402403,12979
26/06/2023,ZZH726045,2,15125,Keira's Kingdom,320000,Social Community Care Supplies & Services  ,Third party payments - Private/Voluntary Sector,Corporate and Support Services,Com. Invest Fund,"1,750.00",402403,12979
26/06/2023,ZZH726045,3,15125,Keira's Kingdom,320000,Social Community Care Supplies & Services  ,Third party payments - Private/Voluntary Sector,Corporate and Support Services,Com. Invest Fund,"1,750.00",402403,12979
26/06/2023,ZZH726045,4,15125,Keira's Kingdom,320000,Social Community Care Supplies & Services  ,Third party payments - Private/Voluntary Sector,Corporate and Support Services,Com. Invest Fund,"1,750.00",402403,12979
26/06/2023,ZZH726045,5,15125,Keira's Kingdom,320000,Social Community Care Supplies & Services  ,Third party payments - Private/Voluntary Sector,Corporate and Support Services,Com. Invest Fund,900,402403,12979
26/06/2023,ZZH726045,6,15125,Keira's Kingdom,320000,Social Community Care Supplies & Services  ,Third party payments - Private/Voluntary Sector,Corporate and Support Services,Com. Invest Fund,"1,000.00",402403,12979
26/06/2023,ZZH726046,1,15125,Keira's Kingdom,320000,Social Community Care Supplies & Services  ,Third party payments - Private/Voluntary Sector,Corporate and Support Services,Com. Invest Fund,"2,500.00",402403,12979
26/06/2023,ZZH726046,2,15125,Keira's Kingdom,320000,Social Community Care Supplies & Services  ,Third party payments - Private/Voluntary Sector,Corporate and Support Services,Com. Invest Fund,"2,500.00",402403,12979
26/06/2023,ZZH726046,3,15125,Keira's Kingdom,320000,Social Community Care Supplies & Services  ,Third party payments - Private/Voluntary Sector,Corporate and Support Services,Com. Invest Fund,"2,500.00",402403,12979
26/06/2023,ZZH726046,4,15125,Keira's Kingdom,320000,Social Community Care Supplies & Services  ,Third party payments - Private/Voluntary Sector,Corporate and Support Services,Com. Invest Fund,"2,500.00",402403,12979
26/06/2023,ZZH726046,5,15125,Keira's Kingdom,320000,Social Community Care Supplies & Services  ,Third party payments - Private/Voluntary Sector,Corporate and Support Services,Com. Invest Fund,900,402403,12979
26/06/2023,ZZH726046,6,15125,Keira's Kingdom,320000,Social Community Care Supplies & Services  ,Third party payments - Private/Voluntary Sector,Corporate and Support Services,Com. Invest Fund,"1,000.00",402403,12979
26/06/2023,ZZH726050,1,2203,Experian Ltd,270000,Information Communication Technology  ,Information and Communications Technology,Corporate and Support Services,Business Intelligenc,"13,788.25",402001,11872
26/06/2023,ZZH726064,1,14996,Hayfield Primary School,170000,Education  ,Third party payments - Public Sector,Services to People,OLA pupils,"16,774.00",500304,10371
26/06/2023,ZZH726066,1,14922,Tots2Teens Therapy,261500,Human Resources Training & Conferences ,Fees and Charges,Services to People,SEN Specific support,"5,000.00",401024,10300
26/06/2023,ZZH726088,1,364,Sutcliffe Play Ltd,240000,Horticultural  ,Grounds Maintenance,#N/A,#N/A,"6,364.80",202032,C.00401
26/06/2023,ZZH726094,1,3707,Salford City Council/Finance,999999,Third party payments - Public Sector,Third party payments - Public Sector,Services to People,Regional Imp Allianc,"9,600.00",500303,13031
27/06/2023,ZZH726105,1,15749,Sonovate Ltd a/f Stonehouse Re,999999,UNCLASSIFIED  ,MISCLASSIFIED? CHECK BEFORE PUBLICATION,Services to Place,Planning,"55,000.00",100100,12150
27/06/2023,ZZH726108,1,8423,SMS Coaching Limited,261500,Human Resources Training & Conferences ,Fees and Charges,Services to People,SEN Independent Sch,"40,000.00",401024,10372
27/06/2023,ZZH726151,1,1129,TMS Consultancy,260000,Human Resources  ,Staff Training,Services to Place,Network Assets Staff,"6,500.00",102020,11959
28/06/2023,ZZH726153,1,12608,Liquidlogic Limited,270000,Information Communication Technology  ,Information and Communications Technology,Corporate and Support Services,I.T Business Relat,"5,119.54",402002,13044
28/06/2023,ZZH726163,1,13860,Howard Lynn Property Ltd,261400,Human Resources Temporary & Agency Staff ,Agency Staff,Services to Place,Property Client Acct,"6,322.42",100290,12328
28/06/2023,ZZH726164,1,13860,Howard Lynn Property Ltd,261400,Human Resources Temporary & Agency Staff ,Agency Staff,Services to Place,Property Client Acct,"6,322.42",100290,12328
28/06/2023,ZZH726175,1,421,Bond Solon Training Ltd,260000,Human Resources  ,Staff Training,Services to People,CYP ASYE,"10,470.00",102020,12953
28/06/2023,ZZH726194,1,6967,Wilde Consultants Ltd,150000,Consultancy   ,Professional Fees,Services to Place,Town Centre Devt Tea,"45,000.00",401007,10072
28/06/2023,ZZH726195,1,10277,AEW Architects & Designers Ltd,150000,Consultancy   ,Professional Fees,Services to Place,Town Centre Devt Tea,"40,605.00",401007,10072
28/06/2023,ZZH726196,1,5131,FUTURE DESIGN CONSULTANTS,150000,Consultancy   ,Professional Fees,Services to Place,MDC Mayoral Dev Co,"25,000.00",401007,13198
28/06/2023,ZZH726197,1,14619,Constellia Public Limited,390000,"Works - Construction, Repair & Maintenance  ",Repairs and Maintenance,Services to Place,Leisure Level Up Fun,"233,379.00",200123,13124
28/06/2023,ZZH726200,1,4369,Pennine Care NHS Trust,999999,UNCLASSIFIED  ,MISCLASSIFIED? CHECK BEFORE PUBLICATION,Services to People,LD Health Staff,"48,000.00",100115,12674
28/06/2023,ZZH726236,1,870,BKSB Ltd,210000,Furniture & Soft Furnishings  ,Furniture and Equipment,Services to Place,Contin Educ Service,"7,080.48",400115,10511
28/06/2023,ZZH726239,1,6748,GEORGE COX & SONS LTD,391114,"Works - Construction, Repair & Maintenance Buildings Surveys",Capital Expenditure - Fees,#N/A,#N/A,"14,519.43",200316,C.00403
29/06/2023,ZZH726265,1,6748,GEORGE COX & SONS LTD,390000,"Works - Construction, Repair & Maintenance  ",Capital Expenditure - Works,#N/A,#N/A,"11,061.80",200304,C.00403
29/06/2023,ZZH726266,1,6748,GEORGE COX & SONS LTD,391114,"Works - Construction, Repair & Maintenance Buildings Surveys",Capital Expenditure - Fees,#N/A,#N/A,"11,906.69",200316,C.00403
29/06/2023,ZZH726268,1,4369,Pennine Care NHS Trust,999999,UNCLASSIFIED  ,MISCLASSIFIED? CHECK BEFORE PUBLICATION,Services to People,LD Health Staff,"995,500.00",100115,12674
29/06/2023,ZZH726269,1,4369,Pennine Care NHS Trust,999999,UNCLASSIFIED  ,MISCLASSIFIED? CHECK BEFORE PUBLICATION,Services to People,LD Health Staff,"60,000.00",100115,12674
29/06/2023,ZZH726271,1,6748,GEORGE COX & SONS LTD,390000,Supplies and services,Supplies and services,#N/A,#N/A,"101,123.62",401600,C.01179.203
29/06/2023,ZZH726272,1,6748,GEORGE COX & SONS LTD,390000,Supplies and services,Supplies and services,#N/A,#N/A,"101,653.72",401600,C.01179.203
29/06/2023,ZZH726276,1,10897,Three Sixty SHG Ltd,390000,"Works - Construction, Repair & Maintenance  ",Repairs and Maintenance,Services to Place,CCTV-Control,"294,280.00",200160,12822
29/06/2023,ZZH726278,1,13495,Pell Frischmann Consultants Lt,150000,Consultancy   ,Professional Fees,Services to Place,MS Design Frnwk Staf,"132,480.00",401020,13107
29/06/2023,ZZH726280,1,14563,New Park Academy,170000,Education  ,Third party payments - Public Sector,Services to People,OLA pupils,"14,328.00",500304,10371
29/06/2023,ZZH726289,1,14098,Rider Levett Bucknall UK Limit,390000,"Works - Construction, Repair & Maintenance  ",Repairs and Maintenance,#N/A,#N/A,"118,810.00",200123,C.10423.184
30/06/2023,ZZH726301,1,4509,Traffic Direct,390000,"Works - Construction, Repair & Maintenance  ",Capital Expenditure - Works,Services to Place,Highways-Network Man,"5,567.44",200304,11968
30/06/2023,ZZH726304,1,15284,Life Skills Hub Limited,320000,Social Community Care Supplies & Services  ,Third party payments - Private/Voluntary Sector,Services to People,Top-up Fund Post 16,"6,318.00",402403,12724
30/06/2023,ZZH726305,1,1816,Seashell Trust,320000,Social Community Care Supplies & Services  ,Third party payments - Private/Voluntary Sector,Services to People,Top-up Fund Post 16,"13,086.00",402403,12724
30/06/2023,ZZH726311,1,6049,"TLC: Talk, Listen, Change",390000,Supplies and services,Supplies and services,Services to People,Domestic Abuse,"440,000.00",401600,12852
30/06/2023,ZZH726312,1,5554,TROJAN CONSULTANTS LTD,270000,Information Communication Technology  ,Information and Communications Technology,Corporate and Support Services,Bentax,"26,500.00",402001,11139
30/06/2023,ZZH726320,1,12653,DAC Beachcroft LLP,280000,Legal Services  ,Legal Fees,Corporate and Support Services,Legal Fees Budget,"5,000.00",401016,12271
30/06/2023,ZZH726344,1,12608,Liquidlogic Limited,270000,Information Communication Technology  ,Information and Communications Technology,Corporate and Support Services,I.T Business Relat,"12,000.00",402001,13044
07/06/2023,ZZP725142,1,6967,Wilde Consultants Ltd,391114,"Works - Construction, Repair & Maintenance Buildings Surveys",Capital Expenditure - Fees,Services to Place,Property Client Acct,"12,894.50",200316,11137
